{"text_format":"1","workbook":"xlsx","n_sheets":9,"sheets":["Instructivo","DEMANDA ANUAL","VOLUMEN DE QUEJAS","COSTO ADMINISTRACIÓN PÚBLICA","RESUMEN DE COSTOS AP","AUXILIAR COSTO ADMINISTRACIÓN","TIEMPO DE RESPUESTA","CANAL ATENCIÓN","RESUMEN"],"not_rendered":{"charts":0,"images":7,"macros":1,"external_links":0,"defined_names":3,"comments":5,"pivot_tables":0},"unopened":[],"bounds":{"document_bytes":16777216,"sheet_cells":100000,"rows_first":2000,"rows_last":500,"rows_between":2000,"halvings":0,"cell_chars":16384,"cell_head_chars":4096},"cells_cut":0,"cells_raw":0,"read":"whole","date_system":"1900"}

{"sheet":"Instructivo","index":0,"n_rows":70,"n_cols":1,"rows_kept":70,"cut":false,"hidden":false,"merged":[]}
["CRITERIO DE PRIORIZACIÓN DE TRÁMITES ADMINISTRATIVOS"]
["Instructivo"]
["Consideraciones generales"]
[]
["En las hojas “COSTO DE ADMINISTRACIÓN PÚBLICA”y “RESUMEN”  para añadir más trámites y que apliquen las fórmulas, se deberá seleccionar la primera fila y copiarla una por cada trámite de la entidad"]
[]
["Todas las hojas tienen columnas de color celeste, en las cuales NO deben ingresar valores ya que contienen fórmulas."]
["Para la carga en GOB.EC. La institución debe recordar que el peso máximo del archivo es de 2 MB."]
["Esquema de puntuación"]
["Para priorizar un trámite, se realizará un análisis de criterios básicos y adicionales basado en información que disponen las instituciones sujetas a esta norma técnica. Cada criterio será puntuado según los lineamientos presentes en esta norma."]
["a) Demanda Anual"]
["Considerará el volumen o frecuencia de las solicitudes que ingresan al año a cada institución para la gestión de un trámite en particular."]
["La identificación del volumen anual de los trámites se realizará a través de sus registros de transacciones y/o el número de visitas de consulta de información realizadas a través de páginas web institucionales."]
["Para realizar el registro realice lo siguiente:"]
["1.- Seleccione la hoja DEMANDA ANUAL"]
["2.- Ingrese los trámites de la institución registrando el identificador y nombre en las columnas respectivas.  "]
["3.- Para cada trámite debe especificar en la columna DEMANDA ANUAL el volumen o frecuencia anual, de acuerdo a lo mencionado anteriormente."]
["4.- Una vez terminado el llenado solicitado presione el botón PUNTUACIÓN, se ordenara de menor a mayor. "]
["5.- Usted visualizará el ordenamiento de los trámites ingresados de acuerdo al número de  volumen o frecuencia anual."]
["6.- Así mismo, usted visualizará el puntaje obtenido en la columna PUNTUACIÓN de acuerdo al grupo obtenido por cada trámite de acuerdo al número de volumen o frecuencia anual cosiderando lo siguiente: ** Primer grupo (trámites con menor demanda no incluye los trámites con demanda 0 ) = 3\n** Segundo grupo (trámites con demanda intermedia) = 6\n** Tercer grupo (trámites con mayor demanda) = 10"]
["Cada vez que requiera actualizar el puntaje presionando el botón puntuación, debe verificar que la celda de la columna puntaje se encuentren vacías, es decir, se debe borrar cualquier valor de puntaje obtenido previamente."]
["b) Volumen de quejas asociadas a un trámite: "]
["Considerará la cantidad de quejas recibidas en relación a un trámite durante un año. Estas quejas deberán estar documentadas en medios físicos y/o digitales."]
["Para determinar la puntuación, se colocará en una tabla todos los trámites con sus correspondientes quejas ordenándose de menor a mayor. Se dividirá en 2 partes en los que cada grupo contenga la misma cantidad de trámites."]
["Para realizar el registro realice lo siguiente:"]
["1.- Seleccione la hoja VOLUMEN DE QUEJAS"]
["2.- Ingrese los trámites de la institución registrando el identificador y nombre en las columnas respectivas.  Si usted requiere de acuerdo al número de trámites copie filas adicionales que estén dentro del cuadro"]
["3.- Para cada trámite debe especificar en la columna VOLUMEN QUEJAS el número de quejas anual, de acuerdo a lo mencionado anteriormente."]
["4.- Una vez terminado el llenado solicitado presione el botón PUNTUACIÓN."]
["5.- Usted visualizará el ordenamiento de los trámites ingresados de acuerdo al número de  volumen o frecuencia anual."]
["6.- Así mismo, usted visualizará el puntaje obtenido en la columna PUNTUACIÓN de acuerdo al grupo obtenido por cada trámite de acuerdo al número de volumen o frecuencia anual cosiderando lo siguiente: La puntuación se basará en los siguientes grupos:\n** Primer grupo (trámites con menor cantidad de quejas, no incluye los trámites con queja 0 ) = 4\n** Segundo grupo (trámites con mayor porcentaje de quejas) = 10"]
["El valor del volumen de quejas no debe ser superior al valor del volumen de la demana, no le permitirá registrar un valor."]
["c) Costo para la administración pública: "]
["En cada trámite, basado en un caso estándar, se deberá estimar el costo incurrido en el costo de personal y recursos necesarios para su atención desde que el administrado entregó todos los requisitos hasta que la institución entregue el producto, respuesta o servicio requerido en el trámite. Se considerará:"]
["• Costo de personal:"]
["Costo del personal para atender el trámite, se excluyen actividades realizadas automáticamente o que dependen del administrado. El tiempo deberá considerar únicamente el tiempo efectivo de trabajo del personal, no debe considerar el tiempo de espera o de movimiento."]
["• Costo de recursos:"]
["Se deberá considerar el costo directo en el que la institución debe incurrir para atender un trámite. Se debe considerar los insumos o materia prima necesaria u cualquier otro que la institución considere pertinente."]
["Para realizar el registro realice lo siguiente:"]
["1.- Seleccione la hoja COSTO ADMINISTRACIÓN PÚBLICA"]
["2.- Ingrese los trámites de la institución registrando el identificador y nombre en las columnas respectivas.  Si usted requiere de acuerdo al número de trámites copie filas adicionales que estén dentro del cuadro"]
["3.- Para calcular el tiempo de las actividades, utilizar la hoja AUXILIAR COSTO ADMINISTRACIÓN donde deberá listar todas las actividades que realiza la institución en un caso estándar y asignar el tiempo mínimo que toma cada actvidad (en horas). El tiempo total de las actividades, deberá ingresar en la correspondiente celda de la hoja COSTO ADMINISTRACIÓN PÚBLICA"]
["4.- En función de la información registrada en el paso 3, la matriz entregará el costo del personal"]
["5.- Completar la columna \"Costo recursos\", en la cual ingresará el costo directo en el que incurre la institución para entregar el trámite. En este valor se considerarán los valores correspondientes a insumos y/o materia prima mínimos que se invierten por cada trámite (no se considera mano de obra)"]
["6.- La columna \"Costo para la adm. pública\" mostrará el costto de este criterio para cada trámite"]
["7,- Para que la fórmula funcione debe arrastrar hacia abajo al último de los támites ingresados, no copiar"]
["7.- Una vez que disponga del Costo para la administración pública, presionar el botón \"GENERAR\"."]
["8. Visualizar la hoja “RESUMEN DE COSTO AP” en la que va a encontrar copiada las celdas necesarias para el ordenamiento y puntuación de las mismas al presionar el botón “PUNTUACIÓN”"]
[]
["d) Tiempo de respuesta: "]
["Considerará los tiempos que a las instituciones les toma dar respuesta a un trámite desde que reciben la solicitud del administrado hasta la finalización del mismo. Para la definición del tiempo se considerará un caso estándar."]
["Para determinar la puntuación, se colocará en una tabla todos los trámites con el tiempo de respuesta, ordenándose de menor a mayor. Se dividirá en 4 grupos, en los que cada uno contenga la misma cantidad de trámites."]
["Para realizar el registro realice lo siguiente:"]
["1.- Seleccione la hoja TIEMPO DE RESPUESTA"]
["2.- Ingrese los trámites de la institución registrando el identificador y nombre en las columnas respectivas.  Si usted requiere de acuerdo al número de trámites copie filas adicionales que estén dentro del cuadro"]
["3.- Para cada trámite debe especificar en la columna TIEMPO RESPUESTA el tiempo, de acuerdo a lo mencionado anteriormente."]
["4.- Una vez terminado el llenado solicitado presione el botón PUNTUACIÓN."]
["5.- Usted visualizará el ordenamiento de los trámites ingresados de acuerdo al número de  volumen o frecuencia anual."]
["6.- Así mismo, usted visualizará el puntaje obtenido en la columna PUNTUACIÓN de acuerdo al grupo obtenido por cada trámite de acuerdo al número de volumen o frecuencia anual cosiderando lo siguiente:  La puntuación considera lo siguiente:\n** Primer grupo (menor o igual a 40 horas laboralres) = 0\n** Segundo grupo mayor  40 horas laboralres) = 30"]
["e) Canal de atención: "]
["Considerará los canales de atención a través de los cuales el administrado puede iniciar el trámite."]
["Para realizar el registro realice lo siguiente:"]
["1.- Seleccione la hoja CANAL ATENCIÓN"]
["2.- Ingrese los trámites de la institución registrando el identificador y nombre en las columnas respectivas.  Si usted requiere de acuerdo al número de trámites copie filas adicionales que estén dentro del cuadro"]
["3.- Para cada trámite debe seleccionar el canal de atención del trámite en la columna CANAL ATENCIÓN, que pueden ser: \nEl trámite se puede completar totalmente en línea: Se considera trámite totalmente en línea cuando el administrado no requiere realizar ninguna interacción presencial con la institución = 0\nEl trámite no se puede completar totalmente en línea: Se considera este caso, cuando el trámite incluye al menos una actividad, incluido mecanismos de pago, en la que el administrado deba acudir presencialmente a la institución, para la realización de dicho trámite. Los trámites presenciales se consideran dentro de esta categoría = 10"]
["4.- De acuerdo a la selección usted obtendrá la puntuación del trámite que se visualizará en la columna PUNTUACIÓN."]
[]
["f) Resumen"]
["En esta hoja deberá consolidar todas las puntuaciones obtenidas para cada trámite en los criterios a) hasta e). Adicionalmente deberá analizar los criterios adicionales que dispone la norma técnica, para estos últimos solamente deberá seleccionar en la celda correspondiente y la matriz asignará la puntuación adicional. Los criterios que deberá considerar son:\n- NECESIDADES CIUDADANAS: Si la institución ha implementado mecanismos para identificar necesidades ciudadanas respecto al trámite, seleccionar \"SI\", caso contrario, seleccionar \"NO\"\n- SUSCEPTIBILIDAD A CORRUPCIÓN: Si la institución dispone de información documentada sobre presuntos actos de corrupción, seleccionar \"SI\", caso contrario, seleccionar \"NO\"\n- VOLUMEN DE DEVOLUCIONES: Si la institución posee documentación sobre devoluciones del trámite en una cantidad significativa, seleccionar \"SI\", caso contrario, seleccionar \"NO\"\nPara que funcione la lista depelgable debe arrastrar la lista y la puntuación hacia abajo al último de los támites ingresados, no copiar"]
["En la columna puntaje total se realizará la sumatoria de los valores de los criterios básicos y adicionales. Este valor deberá registrarse en la plataforma GOB.EC"]

{"sheet":"DEMANDA ANUAL","index":1,"n_rows":125,"n_cols":4,"rows_kept":125,"cut":false,"hidden":false,"merged":[[0,0,0,3],[1,0,1,3]]}
["PRIORIZACIÓN DE TRÁMITES ADMINISTRATIVOS"]
["DEMANDA ANUAL"]
[]
["IDENTIFICADOR","TRÁMITE","DEMANDA ANUAL","PUNTAJE"]
["MREMH-008-01-15","Concesión de visa de residencia permanente Estatuto Migratorio Ecuador-Venezuela",0,0]
["MREMH-006-06-03","Copias Simples o Certificadas de Cartas de Naturalización y Resoluciones de Naturalización por Matrimonio/Unión de Hecho con persona ecuatoriana",0,0]
["MREMH-028-01-01","Emisión de certificado de actualización de información de Organizaciones No Gubernamentales Extranjeras que realizan\nactividades de Cooperación Internacional no reembolsable en el\nEcuador",0,0]
["MREMH-012-02-02","Emisión de desglose de documentos de expedientes de ciudadanos naturalizados como ecuatorianos",0,0]
["MREMH-006-01-02","Obtención de nacionalidad ecuatoriana por carta de naturalización para apátridas",0,0]
["MREMH-006-01-02","Obtención de nacionalidad ecuatoriana por carta de naturalización para apátridas",0,0]
["MREMH-006-03-01","Renuncia a la Nacionalidad Ecuatoriana para ciudadanos naturalizados",0,0]
["MREMH-008-01-18","Concesión de visa de residencia permanente Amparo Mercosur y Estatuto Migratorio Ecuador - Venezuela",2,3]
["MREMH-029-01-02","Emisión de avales para la actualización de dictámenes de prioridad de programas/proyectos financiados con recursos de Cooperación Internacional no Reembolsable",2,3]
["MREMH-029-01-01","Emisión de avales para nuevos Dictámenes de Prioridad de programas/proyectos financiados con recursos de Cooperación Internacional no Reembolsable",2,3]
["MREMH-006-01-04","Obtención de la Naturalización por Adopción",3,3]
["MREMH-018-02-04","Acta de retiro de testamento cerrado en el exterior",4,3]
["MREMH-020-08-02","Cambio de Género de ecuatorianos en el exterior",4,3]
["MREMH-018-02-02","Otorgamiento de testamento cerrado, protocolización y recibo en custodia para ecuatorianos en el exterior",4,3]
["MREMH-018-02-03","Cancelación de testamento abierto en el exterior",5,3]
["MREMH-008-10-33","Concesión de visa de residencia temporal de convenio",8,3]
["MREMH-008-10-18","Concesión de visa de residencia temporal de científico, investigador o académico",9,3]
["MREMH-028-02-01","Certificado de registro de programas y proyectos de cooperación internacional no reembolsable (CINR).",13,3]
["MREMH-018-03-10","Revocatoria de poderes generales y especiales otorgados por personas jurídicas en el exterior",20,3]
["MREMH-008-31-13","Solicitud de reapertura del proceso de determinación de la condición de refugio",20,3]
["MREMH-018-01-06","Compulsa de documentos",21,3]
["MREMH-008-31-20","Recurso Administrativo de Reposición",22,3]
["MREMH-008-31-10","Reagrupación familiar en condición de Refugiado/a",23,3]
["MREMH-020-06-01","Copias de documentos de registro civil otorgados fuera del sistema de la DIGERCIC",26,3]
["MREMH-028-02-02","Emisión de certificado de ficha de registro de programas y proyectos de cooperación internacional no reembolsable (CINR), para los procesos de compensación presupuestaria IVA.",26,3]
["MREMH-018-01-02","Emisión de información sumaria para ciudadanos ecuatorianos y extranjeros en el exterior",26,3]
["MREMH-028-01-03","Emisión de certificado de información registrada de Organizaciones No Gubernamentales Extranjeras que realizan actividades de Cooperación Internacional no reembolsable en el Ecuador",28,3]
["MREMH-023-10-04","Acompañamiento técnico en gestión de la movilidad humana a solicitudes realizadas por consulados honorarios y rentados acreditados en el Ecuador en relación a personas extranjeras privadas de libertad",32,3]
["MREMH-018-02-01","Otorgamiento de testamento abierto, primera copia para ecuatorianos en el exterior",33,3]
["MREMH-023-10-02","Acompañamiento técnico en gestión de la movilidad humana a casos de emergencia de ciudadanos extranjeros",36,3]
["MREMH-012-02-04","Emisión de certificación de registro turístico para ciudadanos haitianos",36,3]
["MREMH-008-10-41","Concesión de visa de residencia temporal Estatuto Migratorio Ecuador-Venezuela.",39,3]
["MREMH-008-10-25","Concesión de visa de residencia temporal rentista",39,3]
["MREMH-023-10-03","Acompañamiento técnico en gestión de la movilidad humana para repatriación de cadáveres, restos mortales y cenizas de extranjeros",44,3]
["MREMH-001-05-05","Emisión de pasaporte Azul, Refugiados y Apátridas",45,3]
["MREMH-023-11-03","Gestión de protección a ecuatorianos en el exterior por repatriación de cadáveres o traslado de restos mortales",47,3]
["MREMH-008-01-17","Concesión de visa de residencia permanente Convenios",68,3]
["MREMH-008-10-30","Concesión de visa de residencia temporal para deportista, artista o gestor cultural.",75,3]
["MREMH-028-01-02","Emisión de certificado de cumplimiento de obligaciones de Organizaciones No Gubernamentales Extranjeras que realizan actividades de Cooperación Internacional no reembolsable en el Ecuador",85,3]
["MREMH-008-30-02","Concesión de visa de visitante temporal especial de turista",88,3]
["MREMH-008-31-17","Certificado de Estado de Situación para personas en protección internacional",92,3]
["MREMH-008-30-05","Concesión de visa de visitante temporal prórroga turista",98,3]
["MREMH-008-10-42","Concesión de visa de residencia temporal Convenio para Organizaciones No Gubernamentales.",99,3]
["MREMH-008-31-18","Autorización para ausentarse de territorio ecuatoriano para Refugiados/as",100,3]
["MREMH-018-03-03","Otorgamiento de poderes generales y especiales otorgados por personas jurídicas en el exterior",110,3]
["MREMH-018-01-05","Protocolización de documentos para ecuatorianos y extranjeros en el exterior",114,6]
["MREMH-006-06-01","Certificación de No Naturalizado como Ecuatoriano.",116,6]
["MREMH-008-01-14","Concesión de visa de residencia permanente para extranjero menor de edad o persona con discapacidad que dependa de una persona ecuatoriana o de un extranjero que cuente con residencia permanente",121,6]
["MREMH-023-11-02","Gestión de búsqueda y localización de ecuatorianos perdidos, desaparecidos, extraviados o incomunicados en el exterior",127,6]
["MREMH-008-31-12","Inclusión familiar en condición de solicitante de refugio (visa humanitaria)",138,6]
["MREMH-008-10-27","Emisión de Visa Temporal de excepción",142,6]
["MREMH-008-31-16","Desistimiento y Renuncia a la condición de Refugiado/a o al proceso de solicitud de Refugio",144,6]
["MREMH-008-10-32","Concesión de visa de residencia temporal voluntario sin convenio binacional",152,6]
["MREMH-006-01-03","Obtención de la Nacionalidad por Matrimonio o Unión de hecho con una persona ecuatoriana",157,6]
["MREMH-008-10-06","Concesión de visa de residencia temporal de Estudiante",160,6]
["MREMH-006-06-02","Certificados de No Renuncia a la Naturalización",161,6]
["MREMH-008-10-29","Concesión de visa de residencia temporal jubilado",173,6]
["MREMH-020-03-04","Solicitud de celebración e inscripción de matrimonio en el exterior en que uno o los dos contrayentes ecuatorianos son divorciados",178,6]
["MREMH-020-03-03","Solicitud de celebración e inscripción de matrimonio en el exterior en el cual uno de los contrayentes sea extranjero",183,6]
["MREMH-023-10-01","Acompañamiento técnico en gestión de la movilidad humana a los casos de vulnerabilidad de ciudadanos extranjeros",200,6]
["MREMH-001-03-01","Emisión de pasaporte Diplomático",212,6]
["MREMH-008-10-31","Concesión de visa de residencia temporal Convenio Conferencia Episcopal",246,6]
["MREMH-012-02-07","Emisión de copias certificadas de documentos que no constan en el arancel consular y diplomático en el exterior",253,6]
["MREMH-008-10-02","Concesión de visa de residencia temporal religioso o voluntario religioso",263,6]
["MREMH-008-10-35","Concesión de visa de residencia temporal inversionista",286,6]
["MREMH-018-01-04","Emisión para reconocimiento de firma realizada ante el Cónsul en documento que no sea escritura pública para ecuatorianos en el exterior",288,6]
["MREMH-001-04-01","Emisión de pasaporte Oficial y de Servicio",290,6]
["MREMH-008-31-15","Recurso Administrativo Extraordinario de Revisión",299,6]
["MREMH-006-01-01","Obtención de la Nacionalidad ecuatoriana por Carta de Naturalización",301,6]
["MREMH-023-11-04","Gestión de asistencia a ecuatorianos en el exterior privados de libertad.",333,6]
["MREMH-018-03-05","Otorgamiento de poder especial otorgado por estudiantes ecuatorianos en el exterior para crédito bancario y primera copia o su revocatoria",352,6]
["MREMH-020-03-01","Solicitud de celebración e inscripción de matrimonio en el exterior entre ecuatorianos solteros y mayores de edad",396,6]
["MREMH-008-10-38","Concesión de visa de residencia temporal de excepción interés nacional",491,6]
["MREMH-008-10-28","Concesión de visa de residencia temporal de Profesional, Técnico, Tecnólogo o Artesano",493,6]
["MREMH-008-01-11","Concesión de visa residencia permanente MERCOSUR",513,6]
["MREMH-004-02-01","Registro de Firmas para Legalizaciones",539,6]
["MREMH-008-30-01","Concesión de visa de visitante temporal turista 90 días",542,6]
["MREMH-008-31-14","Recurso Administrativo de Apelación",585,6]
["MREMH-008-01-12","Concesión de visa de residencia permanente por matrimonio o unión de hecho con ecuatoriano o extranjero titular de una visa indefinida o permanente",628,6]
["MREMH-012-01-01","Emisión de certificación para migrantes ecuatorianos retornados",644,6]
["MREMH-008-10-36","Concesión de visa de residencia temporal de amparo todas las categorías",698,6]
["MREMH-003-01-01","Atención a Exhortos o Cartas Rogatorias",799,6]
["MREMH-020-04-01","Solicitud de inscripción oportuna de nacimiento para ecuatorianos en el exterior",973,6]
["MREMH-008-31-01","Determinación de la condición de Refugiado o Apátrida ",1003,10]
["MREMH-008-10-08","Concesión de visa de residencia temporal de trabajo",1045,10]
["MREMH-008-01-10","Concesión de visa de residencia permanente por tiempo de permanencia mayor a 21 meses con residencia temporal en el Ecuador.",1095,10]
["MREMH-018-03-09","Revocatoria de poderes generales y especiales y primera copia en el exterior",1145,10]
["MREMH-008-01-16","Concesión de visa de residencia permanente para extranjeros hasta segundo grado de consanguinidad o afinidad de un ciudadano ecuatoriano o de un ciudadano extranjero con residencia permanente en el Ecuador",1147,10]
["MREMH-020-04-04","Razón de no Inscripción en el exterior",1225,10]
["MREMH-008-24-01","Transferencia de Visa",1242,10]
["MREMH-008-30-04","Emisión de Visa Diplomática",1565,10]
["MREMH-001-06-01","Emisión de pasaporte de Emergencia",1686,10]
["MREMH-018-03-06","Otorgamiento de segunda y siguientes copias certificadas de poderes para ecuatorianos en el exterior ",1815,10]
["MREMH-012-02-05","Emisión de copias certificadas de aquellos documentos que constan en el archivo del consulado en el exterior",2253,10]
["MREMH-020-08-01","Renovación de cédula de ciudadanía de ecuatorianos en el exterior",2617,10]
["MREMH-023-11-05","Gestión de asistencia a ecuatorianos en el exterior deportados o expulsados hacia el Ecuador.",2774,10]
["MREMH-008-01-13","Concesión de visa de residencia permanente UNASUR",2910,10]
["MREMH-018-01-03","Otorgamiento de autorización de salida del país y autorización para otorgamiento de pasaporte a menores de 18 años",3045,10]
["MREMH-008-10-34","Concesión de visa de residencia temporal UNASUR",3361,10]
["MREMH-018-03-04","Otorgamiento de poder especial para cobro de sueldos, pensiones de jubilación, invalidez, montepío, primera copia y revocatoria",3389,10]
["MREMH-020-07-01","Certificado Digital de Datos de Identidad",3968,10]
["MREMH-001-07-01","Gestión de Pasaportes Extraviados o Robados",4062,10]
["MREMH-008-10-40","Concesión de visa de residencia temporal MERCOSUR",4116,10]
["MREMH-008-31-05","Renovación del documento de identificación de Refugiado/a (Visa de Personas en Protección Internacional)",4938,10]
["MREMH-008-31-19","Renovación de Visa Humanitaria (Certificado provisional de solicitante de la condición de Refugiado/a)",5060,10]
["MREMH-008-25-02","Cancelación de visas por oficio requerida por una persona natural o jurídica auspiciante de la visa",7164,10]
["MREMH-008-10-37","Concesión de visa de residencia temporal de excepción actividad productiva - comercial",7211,10]
["MREMH-023-11-01","Gestión de protección a ecuatorianos en el exterior por retorno asistido y en situaciones de vulnerabilidad",7891,10]
["MREMH-018-01-01","Declaración juramentada para ciudadanos ecuatorianos y extranjeros en el exterior",9251,10]
["MREMH-018-01-07","Otorgamiento de copias certificadas de testamento abierto, testamento cerrado, declaración juramentada, información sumaria y protocolización de documentos en el exterior",9290,10]
["MREMH-020-05-02","Copias integras de nacimiento, matrimonio o defunción en el exterior",10657,10]
["MREMH-024-01-01","Emisión de Carné de Identificación Consular",12211,10]
["MREMH-020-05-01","Emisión de partidas o certificados de nacimientos, matrimonio o defunción para ecuatorianos en el exterior",15415,10]
["MREMH-021-03-01","Emisión de registro del servicio de paquetería 4x4 para ecuatorianos en el exterior",16408,10]
["MREMH-008-10-39","Concesión de visa de residencia temporal de excepción por autoridad de movilidad humana",23162,10]
["MREMH-008-32-02","Emisión de orden de cedulación de visas de residente por primera vez",26658,10]
["MREMH-021-04-01","Certificación artículo 56 del código orgánico general de procesos",33875,10]
["MREMH-018-03-02","Otorgamiento de poder especial y primera copia para ecuatorianos en el exterior",34201,10]
["MREMH-018-03-01","Otorgamiento de poder general y primera copia para ecuatorianos en el exterior",34201,10]
["MREMH-001-01-01","Emisión de pasaporte ordinario por primera vez en el exterior",77485,10]
["MREMH-004-01-01","Emisión de Apostilla y Legalización de documentos",163171,10]

{"sheet":"VOLUMEN DE QUEJAS","index":2,"n_rows":125,"n_cols":6,"rows_kept":125,"cut":false,"hidden":false,"merged":[[0,0,0,5],[1,0,1,5]]}
["PRIORIZACIÓN DE TRÁMITES ADMINISTRATIVOS"]
["VOLUMEN DE QUEJAS"]
[]
["IDENTIFICADOR","TRÁMITE","VOLUMEN DEMANDA","VOLUMEN DE QUEJAS","PORCENTAJE","PUNTUACIÓN"]
["MREMH-008-01-15","Concesión de visa de residencia permanente Estatuto Migratorio Ecuador-Venezuela",0,0,0,0]
["MREMH-006-06-03","Copias Simples o Certificadas de Cartas de Naturalización y Resoluciones de Naturalización por Matrimonio/Unión de Hecho con persona ecuatoriana",0,0,0,0]
["MREMH-028-01-01","Emisión de certificado de actualización de información de Organizaciones No Gubernamentales Extranjeras que realizan\nactividades de Cooperación Internacional no reembolsable en el\nEcuador",0,0,0,0]
["MREMH-012-02-02","Emisión de desglose de documentos de expedientes de ciudadanos naturalizados como ecuatorianos",0,0,0,0]
["MREMH-006-01-02","Obtención de nacionalidad ecuatoriana por carta de naturalización para apátridas",0,0,0,0]
["MREMH-006-01-02","Obtención de nacionalidad ecuatoriana por carta de naturalización para apátridas",0,0,0,0]
["MREMH-006-03-01","Renuncia a la Nacionalidad Ecuatoriana para ciudadanos naturalizados",0,0,0,0]
["MREMH-008-01-18","Concesión de visa de residencia permanente Amparo Mercosur y Estatuto Migratorio Ecuador - Venezuela",2,0,0,0]
["MREMH-029-01-02","Emisión de avales para la actualización de dictámenes de prioridad de programas/proyectos financiados con recursos de Cooperación Internacional no Reembolsable",2,0,0,0]
["MREMH-029-01-01","Emisión de avales para nuevos Dictámenes de Prioridad de programas/proyectos financiados con recursos de Cooperación Internacional no Reembolsable",2,0,0,0]
["MREMH-006-01-04","Obtención de la Naturalización por Adopción",3,0,0,0]
["MREMH-018-02-04","Acta de retiro de testamento cerrado en el exterior",4,2,50,10]
["MREMH-020-08-02","Cambio de Género de ecuatorianos en el exterior",4,0,0,0]
["MREMH-018-02-02","Otorgamiento de testamento cerrado, protocolización y recibo en custodia para ecuatorianos en el exterior",4,2,50,10]
["MREMH-018-02-03","Cancelación de testamento abierto en el exterior",5,3,60,10]
["MREMH-008-10-33","Concesión de visa de residencia temporal de convenio",8,0,0,0]
["MREMH-008-10-18","Concesión de visa de residencia temporal de científico, investigador o académico",9,0,0,0]
["MREMH-028-02-01","Certificado de registro de programas y proyectos de cooperación internacional no reembolsable (CINR).",13,3,23.076923076923077,10]
["MREMH-018-03-10","Revocatoria de poderes generales y especiales otorgados por personas jurídicas en el exterior",20,8,40,10]
["MREMH-008-31-13","Solicitud de reapertura del proceso de determinación de la condición de refugio",20,0,0,0]
["MREMH-018-01-06","Compulsa de documentos",21,1,4.7619047619047619,10]
["MREMH-008-31-20","Recurso Administrativo de Reposición",22,0,0,0]
["MREMH-008-31-10","Reagrupación familiar en condición de Refugiado/a",23,0,0,0]
["MREMH-020-06-01","Copias de documentos de registro civil otorgados fuera del sistema de la DIGERCIC",26,1,3.8461538461538463,10]
["MREMH-028-02-02","Emisión de certificado de ficha de registro de programas y proyectos de cooperación internacional no reembolsable (CINR), para los procesos de compensación presupuestaria IVA.",26,0,0,0]
["MREMH-018-01-02","Emisión de información sumaria para ciudadanos ecuatorianos y extranjeros en el exterior",26,1,3.8461538461538463,10]
["MREMH-028-01-03","Emisión de certificado de información registrada de Organizaciones No Gubernamentales Extranjeras que realizan actividades de Cooperación Internacional no reembolsable en el Ecuador",28,0,0,0]
["MREMH-023-10-04","Acompañamiento técnico en gestión de la movilidad humana a solicitudes realizadas por consulados honorarios y rentados acreditados en el Ecuador en relación a personas extranjeras privadas de libertad",32,1,3.125,10]
["MREMH-018-02-01","Otorgamiento de testamento abierto, primera copia para ecuatorianos en el exterior",33,4,12.121212121212121,10]
["MREMH-023-10-02","Acompañamiento técnico en gestión de la movilidad humana a casos de emergencia de ciudadanos extranjeros",36,1,2.7777777777777777,10]
["MREMH-012-02-04","Emisión de certificación de registro turístico para ciudadanos haitianos",36,0,0,0]
["MREMH-008-10-41","Concesión de visa de residencia temporal Estatuto Migratorio Ecuador-Venezuela.",39,0,0,0]
["MREMH-008-10-25","Concesión de visa de residencia temporal rentista",39,0,0,0]
["MREMH-023-10-03","Acompañamiento técnico en gestión de la movilidad humana para repatriación de cadáveres, restos mortales y cenizas de extranjeros",44,5,11.363636363636363,10]
["MREMH-001-05-05","Emisión de pasaporte Azul, Refugiados y Apátridas",45,0,0,0]
["MREMH-023-11-03","Gestión de protección a ecuatorianos en el exterior por repatriación de cadáveres o traslado de restos mortales",47,0,0,0]
["MREMH-008-01-17","Concesión de visa de residencia permanente Convenios",68,1,1.4705882352941178,10]
["MREMH-008-10-30","Concesión de visa de residencia temporal para deportista, artista o gestor cultural.",75,0,0,0]
["MREMH-028-01-02","Emisión de certificado de cumplimiento de obligaciones de Organizaciones No Gubernamentales Extranjeras que realizan actividades de Cooperación Internacional no reembolsable en el Ecuador",85,0,0,0]
["MREMH-008-30-02","Concesión de visa de visitante temporal especial de turista",88,0,0,0]
["MREMH-008-31-17","Certificado de Estado de Situación para personas en protección internacional",92,0,0,0]
["MREMH-008-30-05","Concesión de visa de visitante temporal prórroga turista",98,0,0,0]
["MREMH-008-10-42","Concesión de visa de residencia temporal Convenio para Organizaciones No Gubernamentales.",99,0,0,0]
["MREMH-008-31-18","Autorización para ausentarse de territorio ecuatoriano para Refugiados/as",100,0,0,0]
["MREMH-018-03-03","Otorgamiento de poderes generales y especiales otorgados por personas jurídicas en el exterior",110,5,4.5454545454545459,10]
["MREMH-018-01-05","Protocolización de documentos para ecuatorianos y extranjeros en el exterior",114,5,4.3859649122807021,10]
["MREMH-006-06-01","Certificación de No Naturalizado como Ecuatoriano.",116,2,1.7241379310344827,10]
["MREMH-008-01-14","Concesión de visa de residencia permanente para extranjero menor de edad o persona con discapacidad que dependa de una persona ecuatoriana o de un extranjero que cuente con residencia permanente",121,0,0,0]
["MREMH-023-11-02","Gestión de búsqueda y localización de ecuatorianos perdidos, desaparecidos, extraviados o incomunicados en el exterior",127,0,0,0]
["MREMH-008-31-12","Inclusión familiar en condición de solicitante de refugio (visa humanitaria)",138,0,0,0]
["MREMH-008-10-27","Emisión de Visa Temporal de excepción",142,0,0,0]
["MREMH-008-31-16","Desistimiento y Renuncia a la condición de Refugiado/a o al proceso de solicitud de Refugio",144,0,0,0]
["MREMH-008-10-32","Concesión de visa de residencia temporal voluntario sin convenio binacional",152,1,0.65789473684210531,4]
["MREMH-006-01-03","Obtención de la Nacionalidad por Matrimonio o Unión de hecho con una persona ecuatoriana",157,6,3.8216560509554141,10]
["MREMH-008-10-06","Concesión de visa de residencia temporal de Estudiante",160,0,0,0]
["MREMH-006-06-02","Certificados de No Renuncia a la Naturalización",161,0,0,0]
["MREMH-008-10-29","Concesión de visa de residencia temporal jubilado",173,1,0.5780346820809249,4]
["MREMH-020-03-04","Solicitud de celebración e inscripción de matrimonio en el exterior en que uno o los dos contrayentes ecuatorianos son divorciados",178,0,0,0]
["MREMH-020-03-03","Solicitud de celebración e inscripción de matrimonio en el exterior en el cual uno de los contrayentes sea extranjero",183,0,0,0]
["MREMH-023-10-01","Acompañamiento técnico en gestión de la movilidad humana a los casos de vulnerabilidad de ciudadanos extranjeros",200,3,1.5,10]
["MREMH-001-03-01","Emisión de pasaporte Diplomático",212,0,0,0]
["MREMH-008-10-31","Concesión de visa de residencia temporal Convenio Conferencia Episcopal",246,0,0,0]
["MREMH-012-02-07","Emisión de copias certificadas de documentos que no constan en el arancel consular y diplomático en el exterior",253,1,0.39525691699604742,4]
["MREMH-008-10-02","Concesión de visa de residencia temporal religioso o voluntario religioso",263,2,0.76045627376425851,4]
["MREMH-008-10-35","Concesión de visa de residencia temporal inversionista",286,2,0.69930069930069927,4]
["MREMH-018-01-04","Emisión para reconocimiento de firma realizada ante el Cónsul en documento que no sea escritura pública para ecuatorianos en el exterior",288,5,1.7361111111111112,10]
["MREMH-001-04-01","Emisión de pasaporte Oficial y de Servicio",290,2,0.68965517241379315,4]
["MREMH-008-31-15","Recurso Administrativo Extraordinario de Revisión",299,0,0,0]
["MREMH-006-01-01","Obtención de la Nacionalidad ecuatoriana por Carta de Naturalización",301,5,1.6611295681063123,10]
["MREMH-023-11-04","Gestión de asistencia a ecuatorianos en el exterior privados de libertad.",333,1,0.3003003003003003,4]
["MREMH-018-03-05","Otorgamiento de poder especial otorgado por estudiantes ecuatorianos en el exterior para crédito bancario y primera copia o su revocatoria",352,4,1.1363636363636365,10]
["MREMH-020-03-01","Solicitud de celebración e inscripción de matrimonio en el exterior entre ecuatorianos solteros y mayores de edad",396,0,0,0]
["MREMH-008-10-38","Concesión de visa de residencia temporal de excepción interés nacional",491,0,0,0]
["MREMH-008-10-28","Concesión de visa de residencia temporal de Profesional, Técnico, Tecnólogo o Artesano",493,2,0.40567951318458417,4]
["MREMH-008-01-11","Concesión de visa residencia permanente MERCOSUR",513,3,0.58479532163742687,4]
["MREMH-004-02-01","Registro de Firmas para Legalizaciones",539,0,0,0]
["MREMH-008-30-01","Concesión de visa de visitante temporal turista 90 días",542,0,0,0]
["MREMH-008-31-14","Recurso Administrativo de Apelación",585,0,0,0]
["MREMH-008-01-12","Concesión de visa de residencia permanente por matrimonio o unión de hecho con ecuatoriano o extranjero titular de una visa indefinida o permanente",628,0,0,0]
["MREMH-012-01-01","Emisión de certificación para migrantes ecuatorianos retornados",644,6,0.93167701863354035,4]
["MREMH-008-10-36","Concesión de visa de residencia temporal de amparo todas las categorías",698,0,0,0]
["MREMH-003-01-01","Atención a Exhortos o Cartas Rogatorias",799,1,0.12515644555694619,4]
["MREMH-020-04-01","Solicitud de inscripción oportuna de nacimiento para ecuatorianos en el exterior",973,1,0.10277492291880781,4]
["MREMH-008-31-01","Determinación de la condición de Refugiado o Apátrida ",1003,1,9.970089730807577E-2,4]
["MREMH-008-10-08","Concesión de visa de residencia temporal de trabajo",1045,2,0.19138755980861244,4]
["MREMH-008-01-10","Concesión de visa de residencia permanente por tiempo de permanencia mayor a 21 meses con residencia temporal en el Ecuador.",1095,9,0.82191780821917804,4]
["MREMH-018-03-09","Revocatoria de poderes generales y especiales y primera copia en el exterior",1145,0,0,0]
["MREMH-008-01-16","Concesión de visa de residencia permanente para extranjeros hasta segundo grado de consanguinidad o afinidad de un ciudadano ecuatoriano o de un ciudadano extranjero con residencia permanente en el Ecuador",1147,0,0,0]
["MREMH-020-04-04","Razón de no Inscripción en el exterior",1225,0,0,0]
["MREMH-008-24-01","Transferencia de Visa",1242,6,0.48309178743961351,4]
["MREMH-008-30-04","Emisión de Visa Diplomática",1565,0,0,0]
["MREMH-001-06-01","Emisión de pasaporte de Emergencia",1686,0,0,0]
["MREMH-018-03-06","Otorgamiento de segunda y siguientes copias certificadas de poderes para ecuatorianos en el exterior ",1815,0,0,0]
["MREMH-012-02-05","Emisión de copias certificadas de aquellos documentos que constan en el archivo del consulado en el exterior",2253,0,0,0]
["MREMH-020-08-01","Renovación de cédula de ciudadanía de ecuatorianos en el exterior",2617,5,0.19105846388995032,4]
["MREMH-023-11-05","Gestión de asistencia a ecuatorianos en el exterior deportados o expulsados hacia el Ecuador.",2774,0,0,0]
["MREMH-008-01-13","Concesión de visa de residencia permanente UNASUR",2910,7,0.24054982817869416,4]
["MREMH-018-01-03","Otorgamiento de autorización de salida del país y autorización para otorgamiento de pasaporte a menores de 18 años",3045,0,0,0]
["MREMH-008-10-34","Concesión de visa de residencia temporal UNASUR",3361,8,0.23802439750074383,4]
["MREMH-018-03-04","Otorgamiento de poder especial para cobro de sueldos, pensiones de jubilación, invalidez, montepío, primera copia y revocatoria",3389,0,0,0]
["MREMH-020-07-01","Certificado Digital de Datos de Identidad",3968,1,2.5201612903225805E-2,4]
["MREMH-001-07-01","Gestión de Pasaportes Extraviados o Robados",4062,0,0,0]
["MREMH-008-10-40","Concesión de visa de residencia temporal MERCOSUR",4116,8,0.19436345966958213,4]
["MREMH-008-31-05","Renovación del documento de identificación de Refugiado/a (Visa de Personas en Protección Internacional)",4938,1,2.025111381125962E-2,4]
["MREMH-008-31-19","Renovación de Visa Humanitaria (Certificado provisional de solicitante de la condición de Refugiado/a)",5060,4,7.9051383399209488E-2,4]
["MREMH-008-25-02","Cancelación de visas por oficio requerida por una persona natural o jurídica auspiciante de la visa",7164,5,6.9793411501954214E-2,4]
["MREMH-008-10-37","Concesión de visa de residencia temporal de excepción actividad productiva - comercial",7211,0,0,0]
["MREMH-023-11-01","Gestión de protección a ecuatorianos en el exterior por retorno asistido y en situaciones de vulnerabilidad",7891,0,0,0]
["MREMH-018-01-01","Declaración juramentada para ciudadanos ecuatorianos y extranjeros en el exterior",9251,104,1.1242027888876878,10]
["MREMH-018-01-07","Otorgamiento de copias certificadas de testamento abierto, testamento cerrado, declaración juramentada, información sumaria y protocolización de documentos en el exterior",9290,0,0,0]
["MREMH-020-05-02","Copias integras de nacimiento, matrimonio o defunción en el exterior",10657,4,3.7534015201276159E-2,4]
["MREMH-024-01-01","Emisión de Carné de Identificación Consular",12211,3,2.4568012447792973E-2,4]
["MREMH-020-05-01","Emisión de partidas o certificados de nacimientos, matrimonio o defunción para ecuatorianos en el exterior",15415,0,0,0]
["MREMH-021-03-01","Emisión de registro del servicio de paquetería 4x4 para ecuatorianos en el exterior",16408,21,0.12798634812286688,4]
["MREMH-008-10-39","Concesión de visa de residencia temporal de excepción por autoridad de movilidad humana",23162,2,8.6348329159830761E-3,4]
["MREMH-008-32-02","Emisión de orden de cedulación de visas de residente por primera vez",26658,44,0.16505364243379098,4]
["MREMH-021-04-01","Certificación artículo 56 del código orgánico general de procesos",33875,3,8.8560885608856086E-3,4]
["MREMH-018-03-02","Otorgamiento de poder especial y primera copia para ecuatorianos en el exterior",34201,102,0.29823689365808015,4]
["MREMH-018-03-01","Otorgamiento de poder general y primera copia para ecuatorianos en el exterior",34201,102,0.29823689365808015,4]
["MREMH-001-01-01","Emisión de pasaporte ordinario por primera vez en el exterior",77485,6,7.7434342130734985E-3,4]
["MREMH-004-01-01","Emisión de Apostilla y Legalización de documentos",163171,250,0.15321349994790742,4]

{"sheet":"COSTO ADMINISTRACIÓN PÚBLICA","index":3,"n_rows":126,"n_cols":9,"rows_kept":126,"cut":false,"hidden":false,"merged":[[0,0,0,5],[1,0,1,5],[3,0,4,0],[3,1,4,1],[3,2,3,4],[3,5,4,5]]}
["PRIORIZACIÓN DE TRÁMITES ADMINISTRATIVOS"]
["COSTOS PARA LA ADMINISTRACIÓN PÚBLICA"]
[]
["IDENTIFICADOR","TRÁMITE","INSUMOS PARA COSTO",null,null,"COSTO PARA LA ADM. PÚBLICA",null,"SBU",400]
[null,null,"TIEMPO (HORAS)","COSTO PERSONAL","COSTO RECURSOS"]
["MREMH-008-01-15","Concesión de visa de residencia permanente Estatuto Migratorio Ecuador-Venezuela",3,{"$f":"C6*$I$4/160","v":7.5},8.66,{"$f":"D6+E6","v":16.16}]
["MREMH-006-06-03","Copias Simples o Certificadas de Cartas de Naturalización y Resoluciones de Naturalización por Matrimonio/Unión de Hecho con persona ecuatoriana",2,{"$f":"C7*$I$4/160","v":5},8.66,{"$f":"D7+E7","v":13.66}]
["MREMH-028-01-01","Emisión de certificado de actualización de información de Organizaciones No Gubernamentales Extranjeras que realizan\nactividades de Cooperación Internacional no reembolsable en el\nEcuador",1,2.5,8.66,11.16]
["MREMH-012-02-02","Emisión de desglose de documentos de expedientes de ciudadanos naturalizados como ecuatorianos",1,2.5,8.66,11.16]
["MREMH-006-01-02","Obtención de nacionalidad ecuatoriana por carta de naturalización para apátridas",4,10,8.66,18.66]
["MREMH-006-01-02","Obtención de nacionalidad ecuatoriana por carta de naturalización para apátridas",4,10,8.66,18.66]
["MREMH-006-03-01","Renuncia a la Nacionalidad Ecuatoriana para ciudadanos naturalizados",4,10,8.66,18.66]
["MREMH-008-01-18","Concesión de visa de residencia permanente Amparo Mercosur y Estatuto Migratorio Ecuador - Venezuela",3,7.5,8.66,16.16]
["MREMH-029-01-02","Emisión de avales para la actualización de dictámenes de prioridad de programas/proyectos financiados con recursos de Cooperación Internacional no Reembolsable",1,2.5,8.66,11.16]
["MREMH-029-01-01","Emisión de avales para nuevos Dictámenes de Prioridad de programas/proyectos financiados con recursos de Cooperación Internacional no Reembolsable",1,2.5,8.66,11.16]
["MREMH-006-01-04","Obtención de la Naturalización por Adopción",4,10,8.66,18.66]
["MREMH-018-02-04","Acta de retiro de testamento cerrado en el exterior",4,10,8.66,18.66]
["MREMH-020-08-02","Cambio de Género de ecuatorianos en el exterior",3,7.5,8.66,16.16]
["MREMH-018-02-02","Otorgamiento de testamento cerrado, protocolización y recibo en custodia para ecuatorianos en el exterior",4,10,8.66,18.66]
["MREMH-018-02-03","Cancelación de testamento abierto en el exterior",4,10,8.66,18.66]
["MREMH-008-10-33","Concesión de visa de residencia temporal de convenio",2,5,8.66,13.66]
["MREMH-008-10-18","Concesión de visa de residencia temporal de científico, investigador o académico",2,5,8.66,13.66]
["MREMH-028-02-01","Certificado de registro de programas y proyectos de cooperación internacional no reembolsable (CINR).",1,2.5,8.66,11.16]
["MREMH-018-03-10","Revocatoria de poderes generales y especiales otorgados por personas jurídicas en el exterior",4,10,8.66,18.66]
["MREMH-008-31-13","Solicitud de reapertura del proceso de determinación de la condición de refugio",3,7.5,8.66,16.16]
["MREMH-018-01-06","Compulsa de documentos",3,7.5,8.66,16.16]
["MREMH-008-31-20","Recurso Administrativo de Reposición",3,7.5,8.66,16.16]
["MREMH-008-31-10","Reagrupación familiar en condición de Refugiado/a",3,7.5,8.66,16.16]
["MREMH-020-06-01","Copias de documentos de registro civil otorgados fuera del sistema de la DIGERCIC",1,2.5,8.66,11.16]
["MREMH-028-02-02","Emisión de certificado de ficha de registro de programas y proyectos de cooperación internacional no reembolsable (CINR), para los procesos de compensación presupuestaria IVA.",1,2.5,8.66,11.16]
["MREMH-018-01-02","Emisión de información sumaria para ciudadanos ecuatorianos y extranjeros en el exterior",4,10,8.66,18.66]
["MREMH-028-01-03","Emisión de certificado de información registrada de Organizaciones No Gubernamentales Extranjeras que realizan actividades de Cooperación Internacional no reembolsable en el Ecuador",1,2.5,8.66,11.16]
["MREMH-023-10-04","Acompañamiento técnico en gestión de la movilidad humana a solicitudes realizadas por consulados honorarios y rentados acreditados en el Ecuador en relación a personas extranjeras privadas de libertad",5,12.5,8.66,21.16]
["MREMH-018-02-01","Otorgamiento de testamento abierto, primera copia para ecuatorianos en el exterior",4,10,8.66,18.66]
["MREMH-023-10-02","Acompañamiento técnico en gestión de la movilidad humana a casos de emergencia de ciudadanos extranjeros",5,12.5,8.66,21.16]
["MREMH-012-02-04","Emisión de certificación de registro turístico para ciudadanos haitianos",1,2.5,8.66,11.16]
["MREMH-008-10-41","Concesión de visa de residencia temporal Estatuto Migratorio Ecuador-Venezuela.",2,5,8.66,13.66]
["MREMH-008-10-25","Concesión de visa de residencia temporal rentista",2,5,8.66,13.66]
["MREMH-023-10-03","Acompañamiento técnico en gestión de la movilidad humana para repatriación de cadáveres, restos mortales y cenizas de extranjeros",5,12.5,8.66,21.16]
["MREMH-001-05-05","Emisión de pasaporte Azul, Refugiados y Apátridas",3,7.5,8.66,16.16]
["MREMH-023-11-03","Gestión de protección a ecuatorianos en el exterior por repatriación de cadáveres o traslado de restos mortales",3,7.5,8.66,16.16]
["MREMH-008-01-17","Concesión de visa de residencia permanente Convenios",3,7.5,8.66,16.16]
["MREMH-008-10-30","Concesión de visa de residencia temporal para deportista, artista o gestor cultural.",2,5,8.66,13.66]
["MREMH-028-01-02","Emisión de certificado de cumplimiento de obligaciones de Organizaciones No Gubernamentales Extranjeras que realizan actividades de Cooperación Internacional no reembolsable en el Ecuador",1,2.5,8.66,11.16]
["MREMH-008-30-02","Concesión de visa de visitante temporal especial de turista",2,5,8.66,13.66]
["MREMH-008-31-17","Certificado de Estado de Situación para personas en protección internacional",1,2.5,8.66,11.16]
["MREMH-008-30-05","Concesión de visa de visitante temporal prórroga turista",2,5,8.66,13.66]
["MREMH-008-10-42","Concesión de visa de residencia temporal Convenio para Organizaciones No Gubernamentales.",2,5,8.66,13.66]
["MREMH-008-31-18","Autorización para ausentarse de territorio ecuatoriano para Refugiados/as",3,7.5,8.66,16.16]
["MREMH-018-03-03","Otorgamiento de poderes generales y especiales otorgados por personas jurídicas en el exterior",4,10,8.66,18.66]
["MREMH-018-01-05","Protocolización de documentos para ecuatorianos y extranjeros en el exterior",3,7.5,8.66,16.16]
["MREMH-006-06-01","Certificación de No Naturalizado como Ecuatoriano.",1,2.5,8.66,11.16]
["MREMH-008-01-14","Concesión de visa de residencia permanente para extranjero menor de edad o persona con discapacidad que dependa de una persona ecuatoriana o de un extranjero que cuente con residencia permanente",3,7.5,8.66,16.16]
["MREMH-023-11-02","Gestión de búsqueda y localización de ecuatorianos perdidos, desaparecidos, extraviados o incomunicados en el exterior",3,7.5,8.66,16.16]
["MREMH-008-31-12","Inclusión familiar en condición de solicitante de refugio (visa humanitaria)",3,7.5,8.66,16.16]
["MREMH-008-10-27","Emisión de Visa Temporal de excepción",2,5,8.66,13.66]
["MREMH-008-31-16","Desistimiento y Renuncia a la condición de Refugiado/a o al proceso de solicitud de Refugio",3,7.5,8.66,16.16]
["MREMH-008-10-32","Concesión de visa de residencia temporal voluntario sin convenio binacional",2,5,8.66,13.66]
["MREMH-006-01-03","Obtención de la Nacionalidad por Matrimonio o Unión de hecho con una persona ecuatoriana",4,10,8.66,18.66]
["MREMH-008-10-06","Concesión de visa de residencia temporal de Estudiante",2,5,8.66,13.66]
["MREMH-006-06-02","Certificados de No Renuncia a la Naturalización",2,5,8.66,13.66]
["MREMH-008-10-29","Concesión de visa de residencia temporal jubilado",2,5,8.66,13.66]
["MREMH-020-03-04","Solicitud de celebración e inscripción de matrimonio en el exterior en que uno o los dos contrayentes ecuatorianos son divorciados",2,5,8.66,13.66]
["MREMH-020-03-03","Solicitud de celebración e inscripción de matrimonio en el exterior en el cual uno de los contrayentes sea extranjero",2,5,8.66,13.66]
["MREMH-023-10-01","Acompañamiento técnico en gestión de la movilidad humana a los casos de vulnerabilidad de ciudadanos extranjeros",5,12.5,8.66,21.16]
["MREMH-001-03-01","Emisión de pasaporte Diplomático",1,2.5,8.66,11.16]
["MREMH-008-10-31","Concesión de visa de residencia temporal Convenio Conferencia Episcopal",2,5,8.66,13.66]
["MREMH-012-02-07","Emisión de copias certificadas de documentos que no constan en el arancel consular y diplomático en el exterior",1,2.5,8.66,11.16]
["MREMH-008-10-02","Concesión de visa de residencia temporal religioso o voluntario religioso",2,5,8.66,13.66]
["MREMH-008-10-35","Concesión de visa de residencia temporal inversionista",2,5,8.66,13.66]
["MREMH-018-01-04","Emisión para reconocimiento de firma realizada ante el Cónsul en documento que no sea escritura pública para ecuatorianos en el exterior",4,{"$f":"C71*$I$4/160","v":10},8.66,{"$f":"D71+E71","v":18.66}]
["MREMH-001-04-01","Emisión de pasaporte Oficial y de Servicio",1,2.5,8.66,11.16]
["MREMH-008-31-15","Recurso Administrativo Extraordinario de Revisión",3,7.5,8.66,16.16]
["MREMH-006-01-01","Obtención de la Nacionalidad ecuatoriana por Carta de Naturalización",4,10,8.66,18.66]
["MREMH-023-11-04","Gestión de asistencia a ecuatorianos en el exterior privados de libertad.",3,7.5,8.66,16.16]
["MREMH-018-03-05","Otorgamiento de poder especial otorgado por estudiantes ecuatorianos en el exterior para crédito bancario y primera copia o su revocatoria",4,10,8.66,18.66]
["MREMH-020-03-01","Solicitud de celebración e inscripción de matrimonio en el exterior entre ecuatorianos solteros y mayores de edad",2,5,8.66,13.66]
["MREMH-008-10-38","Concesión de visa de residencia temporal de excepción interés nacional",2,5,8.66,13.66]
["MREMH-008-10-28","Concesión de visa de residencia temporal de Profesional, Técnico, Tecnólogo o Artesano",2,5,8.66,13.66]
["MREMH-008-01-11","Concesión de visa residencia permanente MERCOSUR",3,7.5,8.66,16.16]
["MREMH-004-02-01","Registro de Firmas para Legalizaciones",1,2.5,8.66,11.16]
["MREMH-008-30-01","Concesión de visa de visitante temporal turista 90 días",2,5,8.66,13.66]
["MREMH-008-31-14","Recurso Administrativo de Apelación",3,7.5,8.66,16.16]
["MREMH-008-01-12","Concesión de visa de residencia permanente por matrimonio o unión de hecho con ecuatoriano o extranjero titular de una visa indefinida o permanente",3,7.5,8.66,16.16]
["MREMH-012-01-01","Emisión de certificación para migrantes ecuatorianos retornados",2,5,8.66,13.66]
["MREMH-008-10-36","Concesión de visa de residencia temporal de amparo todas las categorías",2,5,8.66,13.66]
["MREMH-003-01-01","Atención a Exhortos o Cartas Rogatorias",4,10,8.66,18.66]
["MREMH-020-04-01","Solicitud de inscripción oportuna de nacimiento para ecuatorianos en el exterior",2,5,8.66,13.66]
["MREMH-008-31-01","Determinación de la condición de Refugiado o Apátrida ",3,7.5,8.66,16.16]
["MREMH-008-10-08","Concesión de visa de residencia temporal de trabajo",2,5,8.66,13.66]
["MREMH-008-01-10","Concesión de visa de residencia permanente por tiempo de permanencia mayor a 21 meses con residencia temporal en el Ecuador.",3,7.5,8.66,16.16]
["MREMH-018-03-09","Revocatoria de poderes generales y especiales y primera copia en el exterior",4,10,8.66,18.66]
["MREMH-008-01-16","Concesión de visa de residencia permanente para extranjeros hasta segundo grado de consanguinidad o afinidad de un ciudadano ecuatoriano o de un ciudadano extranjero con residencia permanente en el Ecuador",3,7.5,8.66,16.16]
["MREMH-020-04-04","Razón de no Inscripción en el exterior",2,5,8.66,13.66]
["MREMH-008-24-01","Transferencia de Visa",2,5,8.66,13.66]
["MREMH-008-30-04","Emisión de Visa Diplomática",2,5,8.66,13.66]
["MREMH-001-06-01","Emisión de pasaporte de Emergencia",1,2.5,8.66,11.16]
["MREMH-018-03-06","Otorgamiento de segunda y siguientes copias certificadas de poderes para ecuatorianos en el exterior ",4,10,8.66,18.66]
["MREMH-012-02-05","Emisión de copias certificadas de aquellos documentos que constan en el archivo del consulado en el exterior",1,2.5,8.66,11.16]
["MREMH-020-08-01","Renovación de cédula de ciudadanía de ecuatorianos en el exterior",1,2.5,8.66,11.16]
["MREMH-023-11-05","Gestión de asistencia a ecuatorianos en el exterior deportados o expulsados hacia el Ecuador.",3,7.5,8.66,16.16]
["MREMH-008-01-13","Concesión de visa de residencia permanente UNASUR",3,7.5,8.66,16.16]
["MREMH-018-01-03","Otorgamiento de autorización de salida del país y autorización para otorgamiento de pasaporte a menores de 18 años",2,5,8.66,13.66]
["MREMH-008-10-34","Concesión de visa de residencia temporal UNASUR",2,5,8.66,13.66]
["MREMH-018-03-04","Otorgamiento de poder especial para cobro de sueldos, pensiones de jubilación, invalidez, montepío, primera copia y revocatoria",4,10,8.66,18.66]
["MREMH-020-07-01","Certificado Digital de Datos de Identidad",2,5,8.66,13.66]
["MREMH-001-07-01","Gestión de Pasaportes Extraviados o Robados",1,2.5,8.66,11.16]
["MREMH-008-10-40","Concesión de visa de residencia temporal MERCOSUR",2,5,8.66,13.66]
["MREMH-008-31-05","Renovación del documento de identificación de Refugiado/a (Visa de Personas en Protección Internacional)",3,7.5,8.66,16.16]
["MREMH-008-31-19","Renovación de Visa Humanitaria (Certificado provisional de solicitante de la condición de Refugiado/a)",3,7.5,8.66,16.16]
["MREMH-008-25-02","Cancelación de visas por oficio requerida por una persona natural o jurídica auspiciante de la visa",2,5,8.66,13.66]
["MREMH-008-10-37","Concesión de visa de residencia temporal de excepción actividad productiva - comercial",2,5,8.66,13.66]
["MREMH-023-11-01","Gestión de protección a ecuatorianos en el exterior por retorno asistido y en situaciones de vulnerabilidad",3,7.5,8.66,16.16]
["MREMH-018-01-01","Declaración juramentada para ciudadanos ecuatorianos y extranjeros en el exterior",4,10,8.66,18.66]
["MREMH-018-01-07","Otorgamiento de copias certificadas de testamento abierto, testamento cerrado, declaración juramentada, información sumaria y protocolización de documentos en el exterior",4,10,8.66,18.66]
["MREMH-020-05-02","Copias integras de nacimiento, matrimonio o defunción en el exterior",2,5,8.66,13.66]
["MREMH-024-01-01","Emisión de Carné de Identificación Consular",2,5,8.66,13.66]
["MREMH-020-05-01","Emisión de partidas o certificados de nacimientos, matrimonio o defunción para ecuatorianos en el exterior",2,5,8.66,13.66]
["MREMH-021-03-01","Emisión de registro del servicio de paquetería 4x4 para ecuatorianos en el exterior",1,2.5,8.66,11.16]
["MREMH-008-10-39","Concesión de visa de residencia temporal de excepción por autoridad de movilidad humana",2,5,8.66,13.66]
["MREMH-008-32-02","Emisión de orden de cedulación de visas de residente por primera vez",2,5,8.66,13.66]
["MREMH-021-04-01","Certificación artículo 56 del código orgánico general de procesos",1,2.5,8.66,11.16]
["MREMH-018-03-02","Otorgamiento de poder especial y primera copia para ecuatorianos en el exterior",4,10,8.66,18.66]
["MREMH-018-03-01","Otorgamiento de poder general y primera copia para ecuatorianos en el exterior",4,10,8.66,18.66]
["MREMH-001-01-01","Emisión de pasaporte ordinario por primera vez en el exterior",1,2.5,8.66,11.16]
["MREMH-004-01-01","Emisión de Apostilla y Legalización de documentos",3,7.5,8.66,16.16]

{"sheet":"RESUMEN DE COSTOS AP","index":4,"n_rows":125,"n_cols":4,"rows_kept":125,"cut":false,"hidden":false,"merged":[[0,0,0,5],[1,0,1,5]]}
["PRIORIZACIÓN DE TRÁMITES ADMINISTRATIVOS"]
["COSTOS PARA LA ADMINISTRACIÓN PÚBLICA"]
[]
["IDENTIFICADOR","TRÁMITE","COSTO PARA LA ADM. PÚBLICA","PUNTUACIÓN"]
["MREMH-021-04-01","Certificación artículo 56 del código orgánico general de procesos",11.16,5]
["MREMH-006-06-01","Certificación de No Naturalizado como Ecuatoriano.",11.16,5]
["MREMH-008-31-17","Certificado de Estado de Situación para personas en protección internacional",11.16,5]
["MREMH-028-02-01","Certificado de registro de programas y proyectos de cooperación internacional no reembolsable (CINR).",11.16,5]
["MREMH-020-06-01","Copias de documentos de registro civil otorgados fuera del sistema de la DIGERCIC",11.16,5]
["MREMH-029-01-02","Emisión de avales para la actualización de dictámenes de prioridad de programas/proyectos financiados con recursos de Cooperación Internacional no Reembolsable",11.16,5]
["MREMH-029-01-01","Emisión de avales para nuevos Dictámenes de Prioridad de programas/proyectos financiados con recursos de Cooperación Internacional no Reembolsable",11.16,5]
["MREMH-012-02-04","Emisión de certificación de registro turístico para ciudadanos haitianos",11.16,5]
["MREMH-028-01-01","Emisión de certificado de actualización de información de Organizaciones No Gubernamentales Extranjeras que realizan\nactividades de Cooperación Internacional no reembolsable en el\nEcuador",11.16,5]
["MREMH-028-01-02","Emisión de certificado de cumplimiento de obligaciones de Organizaciones No Gubernamentales Extranjeras que realizan actividades de Cooperación Internacional no reembolsable en el Ecuador",11.16,5]
["MREMH-028-02-02","Emisión de certificado de ficha de registro de programas y proyectos de cooperación internacional no reembolsable (CINR), para los procesos de compensación presupuestaria IVA.",11.16,5]
["MREMH-028-01-03","Emisión de certificado de información registrada de Organizaciones No Gubernamentales Extranjeras que realizan actividades de Cooperación Internacional no reembolsable en el Ecuador",11.16,5]
["MREMH-012-02-05","Emisión de copias certificadas de aquellos documentos que constan en el archivo del consulado en el exterior",11.16,5]
["MREMH-012-02-07","Emisión de copias certificadas de documentos que no constan en el arancel consular y diplomático en el exterior",11.16,5]
["MREMH-012-02-02","Emisión de desglose de documentos de expedientes de ciudadanos naturalizados como ecuatorianos",11.16,5]
["MREMH-001-06-01","Emisión de pasaporte de Emergencia",11.16,5]
["MREMH-001-03-01","Emisión de pasaporte Diplomático",11.16,5]
["MREMH-001-04-01","Emisión de pasaporte Oficial y de Servicio",11.16,5]
["MREMH-001-01-01","Emisión de pasaporte ordinario por primera vez en el exterior",11.16,5]
["MREMH-021-03-01","Emisión de registro del servicio de paquetería 4x4 para ecuatorianos en el exterior",11.16,5]
["MREMH-001-07-01","Gestión de Pasaportes Extraviados o Robados",11.16,5]
["MREMH-004-02-01","Registro de Firmas para Legalizaciones",11.16,5]
["MREMH-020-08-01","Renovación de cédula de ciudadanía de ecuatorianos en el exterior",11.16,5]
["MREMH-008-25-02","Cancelación de visas por oficio requerida por una persona natural o jurídica auspiciante de la visa",13.66,5]
["MREMH-020-07-01","Certificado Digital de Datos de Identidad",13.66,5]
["MREMH-006-06-02","Certificados de No Renuncia a la Naturalización",13.66,5]
["MREMH-008-10-31","Concesión de visa de residencia temporal Convenio Conferencia Episcopal",13.66,5]
["MREMH-008-10-42","Concesión de visa de residencia temporal Convenio para Organizaciones No Gubernamentales.",13.66,5]
["MREMH-008-10-36","Concesión de visa de residencia temporal de amparo todas las categorías",13.66,5]
["MREMH-008-10-18","Concesión de visa de residencia temporal de científico, investigador o académico",13.66,5]
["MREMH-008-10-33","Concesión de visa de residencia temporal de convenio",13.66,5]
["MREMH-008-10-06","Concesión de visa de residencia temporal de Estudiante",13.66,5]
["MREMH-008-10-37","Concesión de visa de residencia temporal de excepción actividad productiva - comercial",13.66,5]
["MREMH-008-10-38","Concesión de visa de residencia temporal de excepción interés nacional",13.66,5]
["MREMH-008-10-39","Concesión de visa de residencia temporal de excepción por autoridad de movilidad humana",13.66,5]
["MREMH-008-10-28","Concesión de visa de residencia temporal de Profesional, Técnico, Tecnólogo o Artesano",13.66,5]
["MREMH-008-10-08","Concesión de visa de residencia temporal de trabajo",13.66,5]
["MREMH-008-10-41","Concesión de visa de residencia temporal Estatuto Migratorio Ecuador-Venezuela.",13.66,5]
["MREMH-008-10-35","Concesión de visa de residencia temporal inversionista",13.66,5]
["MREMH-008-10-29","Concesión de visa de residencia temporal jubilado",13.66,5]
["MREMH-008-10-40","Concesión de visa de residencia temporal MERCOSUR",13.66,5]
["MREMH-008-10-30","Concesión de visa de residencia temporal para deportista, artista o gestor cultural.",13.66,5]
["MREMH-008-10-02","Concesión de visa de residencia temporal religioso o voluntario religioso",13.66,5]
["MREMH-008-10-25","Concesión de visa de residencia temporal rentista",13.66,5]
["MREMH-008-10-34","Concesión de visa de residencia temporal UNASUR",13.66,5]
["MREMH-008-10-32","Concesión de visa de residencia temporal voluntario sin convenio binacional",13.66,5]
["MREMH-008-30-02","Concesión de visa de visitante temporal especial de turista",13.66,5]
["MREMH-008-30-05","Concesión de visa de visitante temporal prórroga turista",13.66,5]
["MREMH-008-30-01","Concesión de visa de visitante temporal turista 90 días",13.66,5]
["MREMH-020-05-02","Copias integras de nacimiento, matrimonio o defunción en el exterior",13.66,5]
["MREMH-006-06-03","Copias Simples o Certificadas de Cartas de Naturalización y Resoluciones de Naturalización por Matrimonio/Unión de Hecho con persona ecuatoriana",13.66,5]
["MREMH-024-01-01","Emisión de Carné de Identificación Consular",13.66,5]
["MREMH-012-01-01","Emisión de certificación para migrantes ecuatorianos retornados",13.66,5]
["MREMH-008-32-02","Emisión de orden de cedulación de visas de residente por primera vez",13.66,5]
["MREMH-020-05-01","Emisión de partidas o certificados de nacimientos, matrimonio o defunción para ecuatorianos en el exterior",13.66,5]
["MREMH-008-30-04","Emisión de Visa Diplomática",13.66,5]
["MREMH-008-10-27","Emisión de Visa Temporal de excepción",13.66,5]
["MREMH-018-01-03","Otorgamiento de autorización de salida del país y autorización para otorgamiento de pasaporte a menores de 18 años",13.66,5]
["MREMH-020-04-04","Razón de no Inscripción en el exterior",13.66,5]
["MREMH-020-03-03","Solicitud de celebración e inscripción de matrimonio en el exterior en el cual uno de los contrayentes sea extranjero",13.66,5]
["MREMH-020-03-04","Solicitud de celebración e inscripción de matrimonio en el exterior en que uno o los dos contrayentes ecuatorianos son divorciados",13.66,5]
["MREMH-020-03-01","Solicitud de celebración e inscripción de matrimonio en el exterior entre ecuatorianos solteros y mayores de edad",13.66,5]
["MREMH-020-04-01","Solicitud de inscripción oportuna de nacimiento para ecuatorianos en el exterior",13.66,5]
["MREMH-008-24-01","Transferencia de Visa",13.66,5]
["MREMH-008-31-18","Autorización para ausentarse de territorio ecuatoriano para Refugiados/as",16.16,10]
["MREMH-020-08-02","Cambio de Género de ecuatorianos en el exterior",16.16,10]
["MREMH-018-01-06","Compulsa de documentos",16.16,10]
["MREMH-008-01-18","Concesión de visa de residencia permanente Amparo Mercosur y Estatuto Migratorio Ecuador - Venezuela",16.16,10]
["MREMH-008-01-17","Concesión de visa de residencia permanente Convenios",16.16,10]
["MREMH-008-01-15","Concesión de visa de residencia permanente Estatuto Migratorio Ecuador-Venezuela",16.16,10]
["MREMH-008-01-14","Concesión de visa de residencia permanente para extranjero menor de edad o persona con discapacidad que dependa de una persona ecuatoriana o de un extranjero que cuente con residencia permanente",16.16,10]
["MREMH-008-01-16","Concesión de visa de residencia permanente para extranjeros hasta segundo grado de consanguinidad o afinidad de un ciudadano ecuatoriano o de un ciudadano extranjero con residencia permanente en el Ecuador",16.16,10]
["MREMH-008-01-12","Concesión de visa de residencia permanente por matrimonio o unión de hecho con ecuatoriano o extranjero titular de una visa indefinida o permanente",16.16,10]
["MREMH-008-01-10","Concesión de visa de residencia permanente por tiempo de permanencia mayor a 21 meses con residencia temporal en el Ecuador.",16.16,10]
["MREMH-008-01-13","Concesión de visa de residencia permanente UNASUR",16.16,10]
["MREMH-008-01-11","Concesión de visa residencia permanente MERCOSUR",16.16,10]
["MREMH-008-31-16","Desistimiento y Renuncia a la condición de Refugiado/a o al proceso de solicitud de Refugio",16.16,10]
["MREMH-008-31-01","Determinación de la condición de Refugiado o Apátrida ",16.16,10]
["MREMH-004-01-01","Emisión de Apostilla y Legalización de documentos",16.16,10]
["MREMH-001-05-05","Emisión de pasaporte Azul, Refugiados y Apátridas",16.16,10]
["MREMH-023-11-05","Gestión de asistencia a ecuatorianos en el exterior deportados o expulsados hacia el Ecuador.",16.16,10]
["MREMH-023-11-04","Gestión de asistencia a ecuatorianos en el exterior privados de libertad.",16.16,10]
["MREMH-023-11-02","Gestión de búsqueda y localización de ecuatorianos perdidos, desaparecidos, extraviados o incomunicados en el exterior",16.16,10]
["MREMH-023-11-03","Gestión de protección a ecuatorianos en el exterior por repatriación de cadáveres o traslado de restos mortales",16.16,10]
["MREMH-023-11-01","Gestión de protección a ecuatorianos en el exterior por retorno asistido y en situaciones de vulnerabilidad",16.16,10]
["MREMH-008-31-12","Inclusión familiar en condición de solicitante de refugio (visa humanitaria)",16.16,10]
["MREMH-018-01-05","Protocolización de documentos para ecuatorianos y extranjeros en el exterior",16.16,10]
["MREMH-008-31-10","Reagrupación familiar en condición de Refugiado/a",16.16,10]
["MREMH-008-31-14","Recurso Administrativo de Apelación",16.16,10]
["MREMH-008-31-20","Recurso Administrativo de Reposición",16.16,10]
["MREMH-008-31-15","Recurso Administrativo Extraordinario de Revisión",16.16,10]
["MREMH-008-31-19","Renovación de Visa Humanitaria (Certificado provisional de solicitante de la condición de Refugiado/a)",16.16,10]
["MREMH-008-31-05","Renovación del documento de identificación de Refugiado/a (Visa de Personas en Protección Internacional)",16.16,10]
["MREMH-008-31-13","Solicitud de reapertura del proceso de determinación de la condición de refugio",16.16,10]
["MREMH-018-02-04","Acta de retiro de testamento cerrado en el exterior",18.66,20]
["MREMH-003-01-01","Atención a Exhortos o Cartas Rogatorias",18.66,20]
["MREMH-018-02-03","Cancelación de testamento abierto en el exterior",18.66,20]
["MREMH-018-01-01","Declaración juramentada para ciudadanos ecuatorianos y extranjeros en el exterior",18.66,20]
["MREMH-018-01-02","Emisión de información sumaria para ciudadanos ecuatorianos y extranjeros en el exterior",18.66,20]
["MREMH-018-01-04","Emisión para reconocimiento de firma realizada ante el Cónsul en documento que no sea escritura pública para ecuatorianos en el exterior",18.66,20]
["MREMH-006-01-01","Obtención de la Nacionalidad ecuatoriana por Carta de Naturalización",18.66,20]
["MREMH-006-01-03","Obtención de la Nacionalidad por Matrimonio o Unión de hecho con una persona ecuatoriana",18.66,20]
["MREMH-006-01-04","Obtención de la Naturalización por Adopción",18.66,20]
["MREMH-006-01-02","Obtención de nacionalidad ecuatoriana por carta de naturalización para apátridas",18.66,20]
["MREMH-006-01-02","Obtención de nacionalidad ecuatoriana por carta de naturalización para apátridas",18.66,20]
["MREMH-018-01-07","Otorgamiento de copias certificadas de testamento abierto, testamento cerrado, declaración juramentada, información sumaria y protocolización de documentos en el exterior",18.66,20]
["MREMH-018-03-05","Otorgamiento de poder especial otorgado por estudiantes ecuatorianos en el exterior para crédito bancario y primera copia o su revocatoria",18.66,20]
["MREMH-018-03-04","Otorgamiento de poder especial para cobro de sueldos, pensiones de jubilación, invalidez, montepío, primera copia y revocatoria",18.66,20]
["MREMH-018-03-02","Otorgamiento de poder especial y primera copia para ecuatorianos en el exterior",18.66,20]
["MREMH-018-03-01","Otorgamiento de poder general y primera copia para ecuatorianos en el exterior",18.66,20]
["MREMH-018-03-03","Otorgamiento de poderes generales y especiales otorgados por personas jurídicas en el exterior",18.66,20]
["MREMH-018-03-06","Otorgamiento de segunda y siguientes copias certificadas de poderes para ecuatorianos en el exterior ",18.66,20]
["MREMH-018-02-01","Otorgamiento de testamento abierto, primera copia para ecuatorianos en el exterior",18.66,20]
["MREMH-018-02-02","Otorgamiento de testamento cerrado, protocolización y recibo en custodia para ecuatorianos en el exterior",18.66,20]
["MREMH-006-03-01","Renuncia a la Nacionalidad Ecuatoriana para ciudadanos naturalizados",18.66,20]
["MREMH-018-03-10","Revocatoria de poderes generales y especiales otorgados por personas jurídicas en el exterior",18.66,20]
["MREMH-018-03-09","Revocatoria de poderes generales y especiales y primera copia en el exterior",18.66,20]
["MREMH-023-10-02","Acompañamiento técnico en gestión de la movilidad humana a casos de emergencia de ciudadanos extranjeros",21.16,20]
["MREMH-023-10-01","Acompañamiento técnico en gestión de la movilidad humana a los casos de vulnerabilidad de ciudadanos extranjeros",21.16,20]
["MREMH-023-10-04","Acompañamiento técnico en gestión de la movilidad humana a solicitudes realizadas por consulados honorarios y rentados acreditados en el Ecuador en relación a personas extranjeras privadas de libertad",21.16,20]
["MREMH-023-10-03","Acompañamiento técnico en gestión de la movilidad humana para repatriación de cadáveres, restos mortales y cenizas de extranjeros",21.16,20]

{"sheet":"AUXILIAR COSTO ADMINISTRACIÓN","index":5,"n_rows":20,"n_cols":3,"rows_kept":20,"cut":false,"hidden":false,"merged":[[1,1,1,2]]}
[]
["TRÁMITE:"]
["NO.","ACTIVIDAD","TIEMPO (HORAS)"]
[1]
[2]
[3]
[4]
[5]
[6]
[7]
[8]
[9]
[10]
[11]
[12]
[13]
[14]
[15]
[]
[null,"SUMATORIA ACTIVIDADES",{"$f":"SUM(C4:C19)","v":0}]

{"sheet":"TIEMPO DE RESPUESTA","index":6,"n_rows":125,"n_cols":4,"rows_kept":125,"cut":false,"hidden":false,"merged":[[0,0,0,3],[1,0,1,3]]}
["PRIORIZACIÓN DE TRÁMITES ADMINISTRATIVOS"]
["TIEMPO DE RESPUESTA"]
[]
["IDENTIFICADOR","TRÁMITE","TIEMPO RESPUESTA (horas laborables)","PUNTUACIÓN"]
["MREMH-008-01-15","Concesión de visa de residencia permanente Estatuto Migratorio Ecuador-Venezuela",6,0]
["MREMH-006-06-03","Copias Simples o Certificadas de Cartas de Naturalización y Resoluciones de Naturalización por Matrimonio/Unión de Hecho con persona ecuatoriana",1,0]
["MREMH-028-01-01","Emisión de certificado de actualización de información de Organizaciones No Gubernamentales Extranjeras que realizan\nactividades de Cooperación Internacional no reembolsable en el\nEcuador",4,0]
["MREMH-012-02-02","Emisión de desglose de documentos de expedientes de ciudadanos naturalizados como ecuatorianos",1,0]
["MREMH-006-01-02","Obtención de nacionalidad ecuatoriana por carta de naturalización para apátridas",24,0]
["MREMH-006-01-02","Obtención de nacionalidad ecuatoriana por carta de naturalización para apátridas",24,0]
["MREMH-006-03-01","Renuncia a la Nacionalidad Ecuatoriana para ciudadanos naturalizados",6,0]
["MREMH-008-01-18","Concesión de visa de residencia permanente Amparo Mercosur y Estatuto Migratorio Ecuador - Venezuela",6,0]
["MREMH-029-01-02","Emisión de avales para la actualización de dictámenes de prioridad de programas/proyectos financiados con recursos de Cooperación Internacional no Reembolsable",4,0]
["MREMH-029-01-01","Emisión de avales para nuevos Dictámenes de Prioridad de programas/proyectos financiados con recursos de Cooperación Internacional no Reembolsable",4,0]
["MREMH-006-01-04","Obtención de la Naturalización por Adopción",24,0]
["MREMH-018-02-04","Acta de retiro de testamento cerrado en el exterior",1,0]
["MREMH-020-08-02","Cambio de Género de ecuatorianos en el exterior",1,0]
["MREMH-018-02-02","Otorgamiento de testamento cerrado, protocolización y recibo en custodia para ecuatorianos en el exterior",1,0]
["MREMH-018-02-03","Cancelación de testamento abierto en el exterior",1,0]
["MREMH-008-10-33","Concesión de visa de residencia temporal de convenio",6,0]
["MREMH-008-10-18","Concesión de visa de residencia temporal de científico, investigador o académico",6,0]
["MREMH-028-02-01","Certificado de registro de programas y proyectos de cooperación internacional no reembolsable (CINR).",4,0]
["MREMH-018-03-10","Revocatoria de poderes generales y especiales otorgados por personas jurídicas en el exterior",1,0]
["MREMH-008-31-13","Solicitud de reapertura del proceso de determinación de la condición de refugio",1,0]
["MREMH-018-01-06","Compulsa de documentos",1,0]
["MREMH-008-31-20","Recurso Administrativo de Reposición",2,0]
["MREMH-008-31-10","Reagrupación familiar en condición de Refugiado/a",6,0]
["MREMH-020-06-01","Copias de documentos de registro civil otorgados fuera del sistema de la DIGERCIC",1,0]
["MREMH-028-02-02","Emisión de certificado de ficha de registro de programas y proyectos de cooperación internacional no reembolsable (CINR), para los procesos de compensación presupuestaria IVA.",4,0]
["MREMH-018-01-02","Emisión de información sumaria para ciudadanos ecuatorianos y extranjeros en el exterior",1,0]
["MREMH-028-01-03","Emisión de certificado de información registrada de Organizaciones No Gubernamentales Extranjeras que realizan actividades de Cooperación Internacional no reembolsable en el Ecuador",4,0]
["MREMH-023-10-04","Acompañamiento técnico en gestión de la movilidad humana a solicitudes realizadas por consulados honorarios y rentados acreditados en el Ecuador en relación a personas extranjeras privadas de libertad",1,0]
["MREMH-018-02-01","Otorgamiento de testamento abierto, primera copia para ecuatorianos en el exterior",1,0]
["MREMH-023-10-02","Acompañamiento técnico en gestión de la movilidad humana a casos de emergencia de ciudadanos extranjeros",6,0]
["MREMH-012-02-04","Emisión de certificación de registro turístico para ciudadanos haitianos",1,0]
["MREMH-008-10-41","Concesión de visa de residencia temporal Estatuto Migratorio Ecuador-Venezuela.",6,0]
["MREMH-008-10-25","Concesión de visa de residencia temporal rentista",6,0]
["MREMH-023-10-03","Acompañamiento técnico en gestión de la movilidad humana para repatriación de cadáveres, restos mortales y cenizas de extranjeros",1,0]
["MREMH-001-05-05","Emisión de pasaporte Azul, Refugiados y Apátridas",1,0]
["MREMH-023-11-03","Gestión de protección a ecuatorianos en el exterior por repatriación de cadáveres o traslado de restos mortales",1,0]
["MREMH-008-01-17","Concesión de visa de residencia permanente Convenios",6,0]
["MREMH-008-10-30","Concesión de visa de residencia temporal para deportista, artista o gestor cultural.",6,0]
["MREMH-028-01-02","Emisión de certificado de cumplimiento de obligaciones de Organizaciones No Gubernamentales Extranjeras que realizan actividades de Cooperación Internacional no reembolsable en el Ecuador",4,0]
["MREMH-008-30-02","Concesión de visa de visitante temporal especial de turista",6,0]
["MREMH-008-31-17","Certificado de Estado de Situación para personas en protección internacional",1,0]
["MREMH-008-30-05","Concesión de visa de visitante temporal prórroga turista",6,0]
["MREMH-008-10-42","Concesión de visa de residencia temporal Convenio para Organizaciones No Gubernamentales.",6,0]
["MREMH-008-31-18","Autorización para ausentarse de territorio ecuatoriano para Refugiados/as",1,0]
["MREMH-018-03-03","Otorgamiento de poderes generales y especiales otorgados por personas jurídicas en el exterior",1,0]
["MREMH-018-01-05","Protocolización de documentos para ecuatorianos y extranjeros en el exterior",1,0]
["MREMH-006-06-01","Certificación de No Naturalizado como Ecuatoriano.",1,0]
["MREMH-008-01-14","Concesión de visa de residencia permanente para extranjero menor de edad o persona con discapacidad que dependa de una persona ecuatoriana o de un extranjero que cuente con residencia permanente",6,0]
["MREMH-023-11-02","Gestión de búsqueda y localización de ecuatorianos perdidos, desaparecidos, extraviados o incomunicados en el exterior",1,0]
["MREMH-008-31-12","Inclusión familiar en condición de solicitante de refugio (visa humanitaria)",6,0]
["MREMH-008-10-27","Emisión de Visa Temporal de excepción",6,0]
["MREMH-008-31-16","Desistimiento y Renuncia a la condición de Refugiado/a o al proceso de solicitud de Refugio",2,0]
["MREMH-008-10-32","Concesión de visa de residencia temporal voluntario sin convenio binacional",6,0]
["MREMH-006-01-03","Obtención de la Nacionalidad por Matrimonio o Unión de hecho con una persona ecuatoriana",6,0]
["MREMH-008-10-06","Concesión de visa de residencia temporal de Estudiante",6,0]
["MREMH-006-06-02","Certificados de No Renuncia a la Naturalización",1,0]
["MREMH-008-10-29","Concesión de visa de residencia temporal jubilado",6,0]
["MREMH-020-03-04","Solicitud de celebración e inscripción de matrimonio en el exterior en que uno o los dos contrayentes ecuatorianos son divorciados",1,0]
["MREMH-020-03-03","Solicitud de celebración e inscripción de matrimonio en el exterior en el cual uno de los contrayentes sea extranjero",1,0]
["MREMH-023-10-01","Acompañamiento técnico en gestión de la movilidad humana a los casos de vulnerabilidad de ciudadanos extranjeros",6,0]
["MREMH-001-03-01","Emisión de pasaporte Diplomático",1,0]
["MREMH-008-10-31","Concesión de visa de residencia temporal Convenio Conferencia Episcopal",6,0]
["MREMH-012-02-07","Emisión de copias certificadas de documentos que no constan en el arancel consular y diplomático en el exterior",1,0]
["MREMH-008-10-02","Concesión de visa de residencia temporal religioso o voluntario religioso",6,0]
["MREMH-008-10-35","Concesión de visa de residencia temporal inversionista",6,0]
["MREMH-018-01-04","Emisión para reconocimiento de firma realizada ante el Cónsul en documento que no sea escritura pública para ecuatorianos en el exterior",1,0]
["MREMH-001-04-01","Emisión de pasaporte Oficial y de Servicio",1,0]
["MREMH-008-31-15","Recurso Administrativo Extraordinario de Revisión",1,0]
["MREMH-006-01-01","Obtención de la Nacionalidad ecuatoriana por Carta de Naturalización",24,0]
["MREMH-023-11-04","Gestión de asistencia a ecuatorianos en el exterior privados de libertad.",6,0]
["MREMH-018-03-05","Otorgamiento de poder especial otorgado por estudiantes ecuatorianos en el exterior para crédito bancario y primera copia o su revocatoria",1,0]
["MREMH-020-03-01","Solicitud de celebración e inscripción de matrimonio en el exterior entre ecuatorianos solteros y mayores de edad",1,0]
["MREMH-008-10-38","Concesión de visa de residencia temporal de excepción interés nacional",6,0]
["MREMH-008-10-28","Concesión de visa de residencia temporal de Profesional, Técnico, Tecnólogo o Artesano",6,0]
["MREMH-008-01-11","Concesión de visa residencia permanente MERCOSUR",6,0]
["MREMH-004-02-01","Registro de Firmas para Legalizaciones",1,0]
["MREMH-008-30-01","Concesión de visa de visitante temporal turista 90 días",6,0]
["MREMH-008-31-14","Recurso Administrativo de Apelación",6,0]
["MREMH-008-01-12","Concesión de visa de residencia permanente por matrimonio o unión de hecho con ecuatoriano o extranjero titular de una visa indefinida o permanente",6,0]
["MREMH-012-01-01","Emisión de certificación para migrantes ecuatorianos retornados",1,0]
["MREMH-008-10-36","Concesión de visa de residencia temporal de amparo todas las categorías",6,0]
["MREMH-003-01-01","Atención a Exhortos o Cartas Rogatorias",1.5,0]
["MREMH-020-04-01","Solicitud de inscripción oportuna de nacimiento para ecuatorianos en el exterior",1,0]
["MREMH-008-31-01","Determinación de la condición de Refugiado o Apátrida ",6,0]
["MREMH-008-10-08","Concesión de visa de residencia temporal de trabajo",6,0]
["MREMH-008-01-10","Concesión de visa de residencia permanente por tiempo de permanencia mayor a 21 meses con residencia temporal en el Ecuador.",6,0]
["MREMH-018-03-09","Revocatoria de poderes generales y especiales y primera copia en el exterior",1,0]
["MREMH-008-01-16","Concesión de visa de residencia permanente para extranjeros hasta segundo grado de consanguinidad o afinidad de un ciudadano ecuatoriano o de un ciudadano extranjero con residencia permanente en el Ecuador",6,0]
["MREMH-020-04-04","Razón de no Inscripción en el exterior",1,0]
["MREMH-008-24-01","Transferencia de Visa",2,0]
["MREMH-008-30-04","Emisión de Visa Diplomática",1,0]
["MREMH-001-06-01","Emisión de pasaporte de Emergencia",1,0]
["MREMH-018-03-06","Otorgamiento de segunda y siguientes copias certificadas de poderes para ecuatorianos en el exterior ",1,0]
["MREMH-012-02-05","Emisión de copias certificadas de aquellos documentos que constan en el archivo del consulado en el exterior",1.5,0]
["MREMH-020-08-01","Renovación de cédula de ciudadanía de ecuatorianos en el exterior",1,0]
["MREMH-023-11-05","Gestión de asistencia a ecuatorianos en el exterior deportados o expulsados hacia el Ecuador.",1.5,0]
["MREMH-008-01-13","Concesión de visa de residencia permanente UNASUR",6,0]
["MREMH-018-01-03","Otorgamiento de autorización de salida del país y autorización para otorgamiento de pasaporte a menores de 18 años",1,0]
["MREMH-008-10-34","Concesión de visa de residencia temporal UNASUR",6,0]
["MREMH-018-03-04","Otorgamiento de poder especial para cobro de sueldos, pensiones de jubilación, invalidez, montepío, primera copia y revocatoria",1,0]
["MREMH-020-07-01","Certificado Digital de Datos de Identidad",1,0]
["MREMH-001-07-01","Gestión de Pasaportes Extraviados o Robados",1,0]
["MREMH-008-10-40","Concesión de visa de residencia temporal MERCOSUR",6,0]
["MREMH-008-31-05","Renovación del documento de identificación de Refugiado/a (Visa de Personas en Protección Internacional)",1,0]
["MREMH-008-31-19","Renovación de Visa Humanitaria (Certificado provisional de solicitante de la condición de Refugiado/a)",1,0]
["MREMH-008-25-02","Cancelación de visas por oficio requerida por una persona natural o jurídica auspiciante de la visa",6,0]
["MREMH-008-10-37","Concesión de visa de residencia temporal de excepción actividad productiva - comercial",6,0]
["MREMH-023-11-01","Gestión de protección a ecuatorianos en el exterior por retorno asistido y en situaciones de vulnerabilidad",3,0]
["MREMH-018-01-01","Declaración juramentada para ciudadanos ecuatorianos y extranjeros en el exterior",1,0]
["MREMH-018-01-07","Otorgamiento de copias certificadas de testamento abierto, testamento cerrado, declaración juramentada, información sumaria y protocolización de documentos en el exterior",1,0]
["MREMH-020-05-02","Copias integras de nacimiento, matrimonio o defunción en el exterior",1,0]
["MREMH-024-01-01","Emisión de Carné de Identificación Consular",1,0]
["MREMH-020-05-01","Emisión de partidas o certificados de nacimientos, matrimonio o defunción para ecuatorianos en el exterior",1,0]
["MREMH-021-03-01","Emisión de registro del servicio de paquetería 4x4 para ecuatorianos en el exterior",1,0]
["MREMH-008-10-39","Concesión de visa de residencia temporal de excepción por autoridad de movilidad humana",6,0]
["MREMH-008-32-02","Emisión de orden de cedulación de visas de residente por primera vez",1,0]
["MREMH-021-04-01","Certificación artículo 56 del código orgánico general de procesos",1,0]
["MREMH-018-03-02","Otorgamiento de poder especial y primera copia para ecuatorianos en el exterior",1,0]
["MREMH-018-03-01","Otorgamiento de poder general y primera copia para ecuatorianos en el exterior",1,0]
["MREMH-001-01-01","Emisión de pasaporte ordinario por primera vez en el exterior",1,0]
["MREMH-004-01-01","Emisión de Apostilla y Legalización de documentos",2,0]

{"sheet":"CANAL ATENCIÓN","index":7,"n_rows":125,"n_cols":12,"rows_kept":125,"cut":false,"hidden":false,"merged":[[0,0,0,3],[1,0,1,3]]}
["PRIORIZACIÓN DE TRÁMITES ADMINISTRATIVOS"]
["CANAL DE ATENCIÓN"]
[null,null,null,null,null,null,null,null,"Totalmente en Línea",null,null,0]
["IDENTIFICADOR","TRÁMITE","CANAL ATENCIÓN","PUNTUACIÓN",null,null,null,null,"No se completa totalmente en línea.",null,null,10]
["MREMH-008-01-15","Concesión de visa de residencia permanente Estatuto Migratorio Ecuador-Venezuela","No se completa totalmente en línea.",{"$f":"IF(ISBLANK(C5),\"\",IF(C5=\"Totalmente en línea\",0,IF(C5=\"Inicia en línea\",6,10)))","v":10}]
["MREMH-006-06-03","Copias Simples o Certificadas de Cartas de Naturalización y Resoluciones de Naturalización por Matrimonio/Unión de Hecho con persona ecuatoriana","No se completa totalmente en línea.",{"$f":"IF(ISBLANK(C6),\"\",IF(C6=\"Totalmente en línea\",0,IF(C6=\"Inicia en línea\",6,10)))","v":10}]
["MREMH-028-01-01","Emisión de certificado de actualización de información de Organizaciones No Gubernamentales Extranjeras que realizan\nactividades de Cooperación Internacional no reembolsable en el\nEcuador","Totalmente en Línea",0]
["MREMH-012-02-02","Emisión de desglose de documentos de expedientes de ciudadanos naturalizados como ecuatorianos","No se completa totalmente en línea.",10]
["MREMH-006-01-02","Obtención de nacionalidad ecuatoriana por carta de naturalización para apátridas","No se completa totalmente en línea.",10]
["MREMH-006-01-02","Obtención de nacionalidad ecuatoriana por carta de naturalización para apátridas","No se completa totalmente en línea.",10]
["MREMH-006-03-01","Renuncia a la Nacionalidad Ecuatoriana para ciudadanos naturalizados","No se completa totalmente en línea.",10]
["MREMH-008-01-18","Concesión de visa de residencia permanente Amparo Mercosur y Estatuto Migratorio Ecuador - Venezuela","No se completa totalmente en línea.",10]
["MREMH-029-01-02","Emisión de avales para la actualización de dictámenes de prioridad de programas/proyectos financiados con recursos de Cooperación Internacional no Reembolsable","No se completa totalmente en línea.",10]
["MREMH-029-01-01","Emisión de avales para nuevos Dictámenes de Prioridad de programas/proyectos financiados con recursos de Cooperación Internacional no Reembolsable","No se completa totalmente en línea.",10]
["MREMH-006-01-04","Obtención de la Naturalización por Adopción","No se completa totalmente en línea.",10]
["MREMH-018-02-04","Acta de retiro de testamento cerrado en el exterior","No se completa totalmente en línea.",10]
["MREMH-020-08-02","Cambio de Género de ecuatorianos en el exterior","No se completa totalmente en línea.",10]
["MREMH-018-02-02","Otorgamiento de testamento cerrado, protocolización y recibo en custodia para ecuatorianos en el exterior","No se completa totalmente en línea.",10]
["MREMH-018-02-03","Cancelación de testamento abierto en el exterior","No se completa totalmente en línea.",10]
["MREMH-008-10-33","Concesión de visa de residencia temporal de convenio","No se completa totalmente en línea.",10]
["MREMH-008-10-18","Concesión de visa de residencia temporal de científico, investigador o académico","No se completa totalmente en línea.",10]
["MREMH-028-02-01","Certificado de registro de programas y proyectos de cooperación internacional no reembolsable (CINR).","No se completa totalmente en línea.",10]
["MREMH-018-03-10","Revocatoria de poderes generales y especiales otorgados por personas jurídicas en el exterior","No se completa totalmente en línea.",10]
["MREMH-008-31-13","Solicitud de reapertura del proceso de determinación de la condición de refugio","Totalmente en Línea",0]
["MREMH-018-01-06","Compulsa de documentos","No se completa totalmente en línea.",10]
["MREMH-008-31-20","Recurso Administrativo de Reposición","Totalmente en Línea",0]
["MREMH-008-31-10","Reagrupación familiar en condición de Refugiado/a","Totalmente en Línea",0]
["MREMH-020-06-01","Copias de documentos de registro civil otorgados fuera del sistema de la DIGERCIC","No se completa totalmente en línea.",10]
["MREMH-028-02-02","Emisión de certificado de ficha de registro de programas y proyectos de cooperación internacional no reembolsable (CINR), para los procesos de compensación presupuestaria IVA.","Totalmente en Línea",0]
["MREMH-018-01-02","Emisión de información sumaria para ciudadanos ecuatorianos y extranjeros en el exterior","No se completa totalmente en línea.",10]
["MREMH-028-01-03","Emisión de certificado de información registrada de Organizaciones No Gubernamentales Extranjeras que realizan actividades de Cooperación Internacional no reembolsable en el Ecuador","Totalmente en Línea",0]
["MREMH-023-10-04","Acompañamiento técnico en gestión de la movilidad humana a solicitudes realizadas por consulados honorarios y rentados acreditados en el Ecuador en relación a personas extranjeras privadas de libertad","No se completa totalmente en línea.",10]
["MREMH-018-02-01","Otorgamiento de testamento abierto, primera copia para ecuatorianos en el exterior","No se completa totalmente en línea.",10]
["MREMH-023-10-02","Acompañamiento técnico en gestión de la movilidad humana a casos de emergencia de ciudadanos extranjeros","No se completa totalmente en línea.",10]
["MREMH-012-02-04","Emisión de certificación de registro turístico para ciudadanos haitianos","No se completa totalmente en línea.",10]
["MREMH-008-10-41","Concesión de visa de residencia temporal Estatuto Migratorio Ecuador-Venezuela.","No se completa totalmente en línea.",10]
["MREMH-008-10-25","Concesión de visa de residencia temporal rentista","No se completa totalmente en línea.",10]
["MREMH-023-10-03","Acompañamiento técnico en gestión de la movilidad humana para repatriación de cadáveres, restos mortales y cenizas de extranjeros","No se completa totalmente en línea.",10]
["MREMH-001-05-05","Emisión de pasaporte Azul, Refugiados y Apátridas","No se completa totalmente en línea.",10]
["MREMH-023-11-03","Gestión de protección a ecuatorianos en el exterior por repatriación de cadáveres o traslado de restos mortales","No se completa totalmente en línea.",10]
["MREMH-008-01-17","Concesión de visa de residencia permanente Convenios","No se completa totalmente en línea.",10]
["MREMH-008-10-30","Concesión de visa de residencia temporal para deportista, artista o gestor cultural.","No se completa totalmente en línea.",10]
["MREMH-028-01-02","Emisión de certificado de cumplimiento de obligaciones de Organizaciones No Gubernamentales Extranjeras que realizan actividades de Cooperación Internacional no reembolsable en el Ecuador","Totalmente en Línea",0]
["MREMH-008-30-02","Concesión de visa de visitante temporal especial de turista","No se completa totalmente en línea.",10]
["MREMH-008-31-17","Certificado de Estado de Situación para personas en protección internacional","Totalmente en Línea",0]
["MREMH-008-30-05","Concesión de visa de visitante temporal prórroga turista","No se completa totalmente en línea.",10]
["MREMH-008-10-42","Concesión de visa de residencia temporal Convenio para Organizaciones No Gubernamentales.","No se completa totalmente en línea.",10]
["MREMH-008-31-18","Autorización para ausentarse de territorio ecuatoriano para Refugiados/as","Totalmente en Línea",0]
["MREMH-018-03-03","Otorgamiento de poderes generales y especiales otorgados por personas jurídicas en el exterior","No se completa totalmente en línea.",10]
["MREMH-018-01-05","Protocolización de documentos para ecuatorianos y extranjeros en el exterior","No se completa totalmente en línea.",10]
["MREMH-006-06-01","Certificación de No Naturalizado como Ecuatoriano.","No se completa totalmente en línea.",10]
["MREMH-008-01-14","Concesión de visa de residencia permanente para extranjero menor de edad o persona con discapacidad que dependa de una persona ecuatoriana o de un extranjero que cuente con residencia permanente","No se completa totalmente en línea.",10]
["MREMH-023-11-02","Gestión de búsqueda y localización de ecuatorianos perdidos, desaparecidos, extraviados o incomunicados en el exterior","No se completa totalmente en línea.",10]
["MREMH-008-31-12","Inclusión familiar en condición de solicitante de refugio (visa humanitaria)","Totalmente en Línea",0]
["MREMH-008-10-27","Emisión de Visa Temporal de excepción","No se completa totalmente en línea.",10]
["MREMH-008-31-16","Desistimiento y Renuncia a la condición de Refugiado/a o al proceso de solicitud de Refugio","Totalmente en Línea",0]
["MREMH-008-10-32","Concesión de visa de residencia temporal voluntario sin convenio binacional","No se completa totalmente en línea.",10]
["MREMH-006-01-03","Obtención de la Nacionalidad por Matrimonio o Unión de hecho con una persona ecuatoriana","No se completa totalmente en línea.",10]
["MREMH-008-10-06","Concesión de visa de residencia temporal de Estudiante","No se completa totalmente en línea.",10]
["MREMH-006-06-02","Certificados de No Renuncia a la Naturalización","No se completa totalmente en línea.",10]
["MREMH-008-10-29","Concesión de visa de residencia temporal jubilado","No se completa totalmente en línea.",10]
["MREMH-020-03-04","Solicitud de celebración e inscripción de matrimonio en el exterior en que uno o los dos contrayentes ecuatorianos son divorciados","No se completa totalmente en línea.",10]
["MREMH-020-03-03","Solicitud de celebración e inscripción de matrimonio en el exterior en el cual uno de los contrayentes sea extranjero","No se completa totalmente en línea.",10]
["MREMH-023-10-01","Acompañamiento técnico en gestión de la movilidad humana a los casos de vulnerabilidad de ciudadanos extranjeros","No se completa totalmente en línea.",10]
["MREMH-001-03-01","Emisión de pasaporte Diplomático","No se completa totalmente en línea.",10]
["MREMH-008-10-31","Concesión de visa de residencia temporal Convenio Conferencia Episcopal","No se completa totalmente en línea.",10]
["MREMH-012-02-07","Emisión de copias certificadas de documentos que no constan en el arancel consular y diplomático en el exterior","No se completa totalmente en línea.",10]
["MREMH-008-10-02","Concesión de visa de residencia temporal religioso o voluntario religioso","No se completa totalmente en línea.",10]
["MREMH-008-10-35","Concesión de visa de residencia temporal inversionista","No se completa totalmente en línea.",10]
["MREMH-018-01-04","Emisión para reconocimiento de firma realizada ante el Cónsul en documento que no sea escritura pública para ecuatorianos en el exterior","No se completa totalmente en línea.",{"$f":"IF(ISBLANK(C70),\"\",IF(C70=\"Totalmente en línea\",0,IF(C70=\"Inicia en línea\",6,10)))","v":10}]
["MREMH-001-04-01","Emisión de pasaporte Oficial y de Servicio","No se completa totalmente en línea.",10]
["MREMH-008-31-15","Recurso Administrativo Extraordinario de Revisión","Totalmente en Línea",0]
["MREMH-006-01-01","Obtención de la Nacionalidad ecuatoriana por Carta de Naturalización","No se completa totalmente en línea.",10]
["MREMH-023-11-04","Gestión de asistencia a ecuatorianos en el exterior privados de libertad.","No se completa totalmente en línea.",10]
["MREMH-018-03-05","Otorgamiento de poder especial otorgado por estudiantes ecuatorianos en el exterior para crédito bancario y primera copia o su revocatoria","No se completa totalmente en línea.",10]
["MREMH-020-03-01","Solicitud de celebración e inscripción de matrimonio en el exterior entre ecuatorianos solteros y mayores de edad","No se completa totalmente en línea.",10]
["MREMH-008-10-38","Concesión de visa de residencia temporal de excepción interés nacional","No se completa totalmente en línea.",10]
["MREMH-008-10-28","Concesión de visa de residencia temporal de Profesional, Técnico, Tecnólogo o Artesano","No se completa totalmente en línea.",10]
["MREMH-008-01-11","Concesión de visa residencia permanente MERCOSUR","No se completa totalmente en línea.",10]
["MREMH-004-02-01","Registro de Firmas para Legalizaciones","No se completa totalmente en línea.",10]
["MREMH-008-30-01","Concesión de visa de visitante temporal turista 90 días","No se completa totalmente en línea.",10]
["MREMH-008-31-14","Recurso Administrativo de Apelación","Totalmente en Línea",0]
["MREMH-008-01-12","Concesión de visa de residencia permanente por matrimonio o unión de hecho con ecuatoriano o extranjero titular de una visa indefinida o permanente","No se completa totalmente en línea.",10]
["MREMH-012-01-01","Emisión de certificación para migrantes ecuatorianos retornados","Totalmente en Línea",0]
["MREMH-008-10-36","Concesión de visa de residencia temporal de amparo todas las categorías","No se completa totalmente en línea.",10]
["MREMH-003-01-01","Atención a Exhortos o Cartas Rogatorias","No se completa totalmente en línea.",10]
["MREMH-020-04-01","Solicitud de inscripción oportuna de nacimiento para ecuatorianos en el exterior","No se completa totalmente en línea.",10]
["MREMH-008-31-01","Determinación de la condición de Refugiado o Apátrida ","Totalmente en Línea",0]
["MREMH-008-10-08","Concesión de visa de residencia temporal de trabajo","No se completa totalmente en línea.",10]
["MREMH-008-01-10","Concesión de visa de residencia permanente por tiempo de permanencia mayor a 21 meses con residencia temporal en el Ecuador.","No se completa totalmente en línea.",10]
["MREMH-018-03-09","Revocatoria de poderes generales y especiales y primera copia en el exterior","No se completa totalmente en línea.",10]
["MREMH-008-01-16","Concesión de visa de residencia permanente para extranjeros hasta segundo grado de consanguinidad o afinidad de un ciudadano ecuatoriano o de un ciudadano extranjero con residencia permanente en el Ecuador","No se completa totalmente en línea.",10]
["MREMH-020-04-04","Razón de no Inscripción en el exterior","No se completa totalmente en línea.",10]
["MREMH-008-24-01","Transferencia de Visa","No se completa totalmente en línea.",10]
["MREMH-008-30-04","Emisión de Visa Diplomática","No se completa totalmente en línea.",10]
["MREMH-001-06-01","Emisión de pasaporte de Emergencia","No se completa totalmente en línea.",10]
["MREMH-018-03-06","Otorgamiento de segunda y siguientes copias certificadas de poderes para ecuatorianos en el exterior ","No se completa totalmente en línea.",10]
["MREMH-012-02-05","Emisión de copias certificadas de aquellos documentos que constan en el archivo del consulado en el exterior","No se completa totalmente en línea.",10]
["MREMH-020-08-01","Renovación de cédula de ciudadanía de ecuatorianos en el exterior","No se completa totalmente en línea.",10]
["MREMH-023-11-05","Gestión de asistencia a ecuatorianos en el exterior deportados o expulsados hacia el Ecuador.","No se completa totalmente en línea.",10]
["MREMH-008-01-13","Concesión de visa de residencia permanente UNASUR","No se completa totalmente en línea.",10]
["MREMH-018-01-03","Otorgamiento de autorización de salida del país y autorización para otorgamiento de pasaporte a menores de 18 años","No se completa totalmente en línea.",10]
["MREMH-008-10-34","Concesión de visa de residencia temporal UNASUR","No se completa totalmente en línea.",10]
["MREMH-018-03-04","Otorgamiento de poder especial para cobro de sueldos, pensiones de jubilación, invalidez, montepío, primera copia y revocatoria","No se completa totalmente en línea.",10]
["MREMH-020-07-01","Certificado Digital de Datos de Identidad","No se completa totalmente en línea.",10]
["MREMH-001-07-01","Gestión de Pasaportes Extraviados o Robados","No se completa totalmente en línea.",10]
["MREMH-008-10-40","Concesión de visa de residencia temporal MERCOSUR","No se completa totalmente en línea.",10]
["MREMH-008-31-05","Renovación del documento de identificación de Refugiado/a (Visa de Personas en Protección Internacional)","Totalmente en Línea",0]
["MREMH-008-31-19","Renovación de Visa Humanitaria (Certificado provisional de solicitante de la condición de Refugiado/a)","Totalmente en Línea",0]
["MREMH-008-25-02","Cancelación de visas por oficio requerida por una persona natural o jurídica auspiciante de la visa","No se completa totalmente en línea.",10]
["MREMH-008-10-37","Concesión de visa de residencia temporal de excepción actividad productiva - comercial","No se completa totalmente en línea.",10]
["MREMH-023-11-01","Gestión de protección a ecuatorianos en el exterior por retorno asistido y en situaciones de vulnerabilidad","No se completa totalmente en línea.",10]
["MREMH-018-01-01","Declaración juramentada para ciudadanos ecuatorianos y extranjeros en el exterior","No se completa totalmente en línea.",10]
["MREMH-018-01-07","Otorgamiento de copias certificadas de testamento abierto, testamento cerrado, declaración juramentada, información sumaria y protocolización de documentos en el exterior","No se completa totalmente en línea.",10]
["MREMH-020-05-02","Copias integras de nacimiento, matrimonio o defunción en el exterior","No se completa totalmente en línea.",10]
["MREMH-024-01-01","Emisión de Carné de Identificación Consular","No se completa totalmente en línea.",10]
["MREMH-020-05-01","Emisión de partidas o certificados de nacimientos, matrimonio o defunción para ecuatorianos en el exterior","No se completa totalmente en línea.",10]
["MREMH-021-03-01","Emisión de registro del servicio de paquetería 4x4 para ecuatorianos en el exterior","No se completa totalmente en línea.",10]
["MREMH-008-10-39","Concesión de visa de residencia temporal de excepción por autoridad de movilidad humana","No se completa totalmente en línea.",10]
["MREMH-008-32-02","Emisión de orden de cedulación de visas de residente por primera vez","No se completa totalmente en línea.",10]
["MREMH-021-04-01","Certificación artículo 56 del código orgánico general de procesos","Totalmente en Línea",0]
["MREMH-018-03-02","Otorgamiento de poder especial y primera copia para ecuatorianos en el exterior","No se completa totalmente en línea.",10]
["MREMH-018-03-01","Otorgamiento de poder general y primera copia para ecuatorianos en el exterior","No se completa totalmente en línea.",10]
["MREMH-001-01-01","Emisión de pasaporte ordinario por primera vez en el exterior","No se completa totalmente en línea.",10]
["MREMH-004-01-01","Emisión de Apostilla y Legalización de documentos","No se completa totalmente en línea.",10]

{"sheet":"RESUMEN","index":8,"n_rows":124,"n_cols":25,"rows_kept":124,"cut":false,"hidden":false,"merged":[[1,0,2,0],[1,1,2,1],[1,2,2,2],[1,3,2,3],[1,4,2,4],[1,9,1,10],[1,11,1,12],[1,13,2,13],[0,2,0,6],[0,7,0,12],[1,5,2,5],[1,6,2,6],[1,7,1,8]]}
[null,null,"BÁSICOS",null,null,null,null,"ADICIONALES"]
["ID trámite","Nombre del trámite","Demanda","Quejas","Costo para administración","Tiempo de respuesta","Canal de atención","Necesidades ciudadanas",null,"Susceptibilidad a corrupción",null,"Volumen de devoluciones",null,"PUNTAJE TOTAL"]
[null,null,null,null,null,null,null,"Criterio","Puntuación","Criterio","Puntuación","Criterio","Puntuación",null,null,null,null,null,null,null,"demanda",0,3,6,10]
["MREMH-008-01-15","Concesión de visa de residencia permanente Estatuto Migratorio Ecuador-Venezuela",0,0,10,0,10,"NO",{"$f":"IF(H4=\"SI\",5,0)","v":0},"NO",{"$f":"IF(J4=\"SI\",10,0)","v":0},"NO",{"$f":"IF(L4=\"SI\",5,0)","v":0},{"$f":"SUM(C4:G4,I4,K4,M4)","v":20},null,null,null,null,null,null,"quejas",0,4,10]
["MREMH-006-06-03","Copias Simples o Certificadas de Cartas de Naturalización y Resoluciones de Naturalización por Matrimonio/Unión de Hecho con persona ecuatoriana",0,0,5,0,10,"NO",{"$f":"IF(H5=\"SI\",5,0)","v":0},"NO",{"$f":"IF(J5=\"SI\",10,0)","v":0},"NO",{"$f":"IF(L5=\"SI\",5,0)","v":0},{"$f":"SUM(C5:G5,I5,K5,M5)","v":15},null,null,null,null,null,null,"cpa",5,10,20]
["MREMH-028-01-01","Emisión de certificado de actualización de información de Organizaciones No Gubernamentales Extranjeras que realizan\nactividades de Cooperación Internacional no reembolsable en el\nEcuador",0,0,5,0,0,"NO",0,"NO",0,"NO",0,5,null,null,null,null,null,null,"tr",0,30]
["MREMH-012-02-02","Emisión de desglose de documentos de expedientes de ciudadanos naturalizados como ecuatorianos",0,0,5,0,10,"NO",0,"NO",0,"NO",0,15,null,null,null,null,null,null,"ca",0,10]
["MREMH-006-01-02","Obtención de nacionalidad ecuatoriana por carta de naturalización para apátridas",0,0,20,0,10,"NO",0,"NO",0,"NO",0,30,null,null,null,null,null,null,null,"SI","NO"]
["MREMH-006-01-02","Obtención de nacionalidad ecuatoriana por carta de naturalización para apátridas",0,0,20,0,10,"NO",0,"NO",0,"NO",0,30]
["MREMH-006-03-01","Renuncia a la Nacionalidad Ecuatoriana para ciudadanos naturalizados",0,0,20,0,10,"NO",0,"NO",0,"NO",0,30]
["MREMH-008-01-18","Concesión de visa de residencia permanente Amparo Mercosur y Estatuto Migratorio Ecuador - Venezuela",3,0,10,0,10,"NO",0,"NO",0,"NO",0,23]
["MREMH-029-01-02","Emisión de avales para la actualización de dictámenes de prioridad de programas/proyectos financiados con recursos de Cooperación Internacional no Reembolsable",3,0,5,0,10,"NO",0,"NO",0,"NO",0,18]
["MREMH-029-01-01","Emisión de avales para nuevos Dictámenes de Prioridad de programas/proyectos financiados con recursos de Cooperación Internacional no Reembolsable",3,0,5,0,10,"NO",0,"NO",0,"NO",0,18]
["MREMH-006-01-04","Obtención de la Naturalización por Adopción",3,0,20,0,10,"NO",0,"NO",0,"NO",0,33]
["MREMH-018-02-04","Acta de retiro de testamento cerrado en el exterior",3,10,20,0,10,"SI",5,"NO",0,"SI",5,53]
["MREMH-020-08-02","Cambio de Género de ecuatorianos en el exterior",3,0,10,0,10,"NO",0,"NO",0,"NO",0,23]
["MREMH-018-02-02","Otorgamiento de testamento cerrado, protocolización y recibo en custodia para ecuatorianos en el exterior",3,10,20,0,10,"SI",5,"NO",0,"SI",5,53]
["MREMH-018-02-03","Cancelación de testamento abierto en el exterior",3,10,20,0,10,"SI",5,"NO",0,"SI",5,53]
["MREMH-008-10-33","Concesión de visa de residencia temporal de convenio",3,0,5,0,10,"NO",0,"NO",0,"NO",0,18]
["MREMH-008-10-18","Concesión de visa de residencia temporal de científico, investigador o académico",3,0,5,0,10,"NO",0,"NO",0,"NO",0,18]
["MREMH-028-02-01","Certificado de registro de programas y proyectos de cooperación internacional no reembolsable (CINR).",3,10,5,0,10,"NO",0,"NO",0,"NO",0,28]
["MREMH-018-03-10","Revocatoria de poderes generales y especiales otorgados por personas jurídicas en el exterior",3,10,20,0,10,"SI",5,"NO",0,"SI",5,53]
["MREMH-008-31-13","Solicitud de reapertura del proceso de determinación de la condición de refugio",3,0,10,0,0,"NO",0,"NO",0,"NO",0,13]
["MREMH-018-01-06","Compulsa de documentos",3,10,10,0,10,"NO",0,"NO",0,"NO",0,33]
["MREMH-008-31-20","Recurso Administrativo de Reposición",3,0,10,0,0,"NO",0,"NO",0,"NO",0,13]
["MREMH-008-31-10","Reagrupación familiar en condición de Refugiado/a",3,0,10,0,0,"NO",0,"NO",0,"NO",0,13]
["MREMH-020-06-01","Copias de documentos de registro civil otorgados fuera del sistema de la DIGERCIC",3,10,5,0,10,"NO",0,"NO",0,"NO",0,28]
["MREMH-028-02-02","Emisión de certificado de ficha de registro de programas y proyectos de cooperación internacional no reembolsable (CINR), para los procesos de compensación presupuestaria IVA.",3,0,5,0,0,"NO",0,"NO",0,"NO",0,8]
["MREMH-018-01-02","Emisión de información sumaria para ciudadanos ecuatorianos y extranjeros en el exterior",3,10,20,0,10,"SI",5,"NO",0,"SI",5,53]
["MREMH-028-01-03","Emisión de certificado de información registrada de Organizaciones No Gubernamentales Extranjeras que realizan actividades de Cooperación Internacional no reembolsable en el Ecuador",3,0,5,0,0,"NO",0,"NO",0,"NO",0,8]
["MREMH-023-10-04","Acompañamiento técnico en gestión de la movilidad humana a solicitudes realizadas por consulados honorarios y rentados acreditados en el Ecuador en relación a personas extranjeras privadas de libertad",3,10,20,0,10,"NO",0,"SI",10,"NO",0,53]
["MREMH-018-02-01","Otorgamiento de testamento abierto, primera copia para ecuatorianos en el exterior",3,10,20,0,10,"SI",5,"NO",0,"SI",5,53]
["MREMH-023-10-02","Acompañamiento técnico en gestión de la movilidad humana a casos de emergencia de ciudadanos extranjeros",3,10,20,0,10,"NO",0,"SI",10,"NO",0,53]
["MREMH-012-02-04","Emisión de certificación de registro turístico para ciudadanos haitianos",3,0,5,0,10,"NO",0,"NO",0,"NO",0,18]
["MREMH-008-10-41","Concesión de visa de residencia temporal Estatuto Migratorio Ecuador-Venezuela.",3,0,5,0,10,"NO",0,"NO",0,"NO",0,18]
["MREMH-008-10-25","Concesión de visa de residencia temporal rentista",3,0,5,0,10,"NO",0,"NO",0,"NO",0,18]
["MREMH-023-10-03","Acompañamiento técnico en gestión de la movilidad humana para repatriación de cadáveres, restos mortales y cenizas de extranjeros",3,10,20,0,10,"NO",0,"SI",10,"NO",0,53]
["MREMH-001-05-05","Emisión de pasaporte Azul, Refugiados y Apátridas",3,0,10,0,10,"NO",0,"NO",0,"NO",0,23]
["MREMH-023-11-03","Gestión de protección a ecuatorianos en el exterior por repatriación de cadáveres o traslado de restos mortales",3,0,10,0,10,"NO",0,"NO",0,"NO",0,23]
["MREMH-008-01-17","Concesión de visa de residencia permanente Convenios",3,10,10,0,10,"NO",0,"NO",0,"NO",0,33]
["MREMH-008-10-30","Concesión de visa de residencia temporal para deportista, artista o gestor cultural.",3,0,5,0,10,"NO",0,"NO",0,"NO",0,18]
["MREMH-028-01-02","Emisión de certificado de cumplimiento de obligaciones de Organizaciones No Gubernamentales Extranjeras que realizan actividades de Cooperación Internacional no reembolsable en el Ecuador",3,0,5,0,0,"NO",0,"NO",0,"NO",0,8]
["MREMH-008-30-02","Concesión de visa de visitante temporal especial de turista",3,0,5,0,10,"NO",0,"NO",0,"NO",0,18]
["MREMH-008-31-17","Certificado de Estado de Situación para personas en protección internacional",3,0,5,0,0,"NO",0,"NO",0,"NO",0,8]
["MREMH-008-30-05","Concesión de visa de visitante temporal prórroga turista",3,0,5,0,10,"NO",0,"NO",0,"NO",0,18]
["MREMH-008-10-42","Concesión de visa de residencia temporal Convenio para Organizaciones No Gubernamentales.",3,0,5,0,10,"NO",0,"NO",0,"NO",0,18]
["MREMH-008-31-18","Autorización para ausentarse de territorio ecuatoriano para Refugiados/as",3,0,10,0,0,"NO",0,"NO",0,"NO",0,13]
["MREMH-018-03-03","Otorgamiento de poderes generales y especiales otorgados por personas jurídicas en el exterior",3,10,20,0,10,"SI",5,"NO",0,"SI",5,53]
["MREMH-018-01-05","Protocolización de documentos para ecuatorianos y extranjeros en el exterior",6,10,10,0,10,"SI",5,"NO",0,"SI",5,46]
["MREMH-006-06-01","Certificación de No Naturalizado como Ecuatoriano.",6,10,5,0,10,"NO",0,"NO",0,"NO",0,31]
["MREMH-008-01-14","Concesión de visa de residencia permanente para extranjero menor de edad o persona con discapacidad que dependa de una persona ecuatoriana o de un extranjero que cuente con residencia permanente",6,0,10,0,10,"NO",0,"NO",0,"NO",0,26]
["MREMH-023-11-02","Gestión de búsqueda y localización de ecuatorianos perdidos, desaparecidos, extraviados o incomunicados en el exterior",6,0,10,0,10,"NO",0,"NO",0,"NO",0,26]
["MREMH-008-31-12","Inclusión familiar en condición de solicitante de refugio (visa humanitaria)",6,0,10,0,0,"NO",0,"NO",0,"NO",0,16]
["MREMH-008-10-27","Emisión de Visa Temporal de excepción",6,0,5,0,10,"NO",0,"NO",0,"NO",0,21]
["MREMH-008-31-16","Desistimiento y Renuncia a la condición de Refugiado/a o al proceso de solicitud de Refugio",6,0,10,0,0,"NO",0,"NO",0,"NO",0,16]
["MREMH-008-10-32","Concesión de visa de residencia temporal voluntario sin convenio binacional",6,4,5,0,10,"NO",0,"NO",0,"NO",0,25]
["MREMH-006-01-03","Obtención de la Nacionalidad por Matrimonio o Unión de hecho con una persona ecuatoriana",6,10,20,0,10,"NO",0,"NO",0,"NO",0,46]
["MREMH-008-10-06","Concesión de visa de residencia temporal de Estudiante",6,0,5,0,10,"NO",0,"NO",0,"NO",0,21]
["MREMH-006-06-02","Certificados de No Renuncia a la Naturalización",6,0,5,0,10,"NO",0,"NO",0,"NO",0,21]
["MREMH-008-10-29","Concesión de visa de residencia temporal jubilado",6,4,5,0,10,"NO",0,"NO",0,"NO",0,25]
["MREMH-020-03-04","Solicitud de celebración e inscripción de matrimonio en el exterior en que uno o los dos contrayentes ecuatorianos son divorciados",6,0,5,0,10,"NO",0,"NO",0,"NO",0,21]
["MREMH-020-03-03","Solicitud de celebración e inscripción de matrimonio en el exterior en el cual uno de los contrayentes sea extranjero",6,0,5,0,10,"NO",0,"NO",0,"NO",0,21]
["MREMH-023-10-01","Acompañamiento técnico en gestión de la movilidad humana a los casos de vulnerabilidad de ciudadanos extranjeros",6,10,20,0,10,"NO",0,"SI",10,"NO",0,56]
["MREMH-001-03-01","Emisión de pasaporte Diplomático",6,0,5,0,10,"NO",0,"NO",0,"NO",0,21]
["MREMH-008-10-31","Concesión de visa de residencia temporal Convenio Conferencia Episcopal",6,0,5,0,10,"NO",0,"NO",0,"NO",0,21]
["MREMH-012-02-07","Emisión de copias certificadas de documentos que no constan en el arancel consular y diplomático en el exterior",6,4,5,0,10,"NO",0,"NO",0,"NO",0,25]
["MREMH-008-10-02","Concesión de visa de residencia temporal religioso o voluntario religioso",6,4,5,0,10,"NO",0,"NO",0,"NO",0,25]
["MREMH-008-10-35","Concesión de visa de residencia temporal inversionista",6,4,5,0,10,"NO",0,"NO",0,"NO",0,25]
["MREMH-018-01-04","Emisión para reconocimiento de firma realizada ante el Cónsul en documento que no sea escritura pública para ecuatorianos en el exterior",6,10,20,0,10,"SI",{"$f":"IF(H69=\"SI\",5,0)","v":5},"NO",{"$f":"IF(J69=\"SI\",10,0)","v":0},"SI",{"$f":"IF(L69=\"SI\",5,0)","v":5},{"$f":"SUM(C69:G69,I69,K69,M69)","v":56}]
["MREMH-001-04-01","Emisión de pasaporte Oficial y de Servicio",6,4,5,0,10,"NO",0,"NO",0,"NO",0,25]
["MREMH-008-31-15","Recurso Administrativo Extraordinario de Revisión",6,0,10,0,0,"NO",0,"NO",0,"NO",0,16]
["MREMH-006-01-01","Obtención de la Nacionalidad ecuatoriana por Carta de Naturalización",6,10,20,0,10,"NO",0,"NO",0,"NO",0,46]
["MREMH-023-11-04","Gestión de asistencia a ecuatorianos en el exterior privados de libertad.",6,4,10,0,10,"NO",0,"NO",0,"NO",0,30]
["MREMH-018-03-05","Otorgamiento de poder especial otorgado por estudiantes ecuatorianos en el exterior para crédito bancario y primera copia o su revocatoria",6,10,20,0,10,"NO",0,"NO",0,"NO",0,46]
["MREMH-020-03-01","Solicitud de celebración e inscripción de matrimonio en el exterior entre ecuatorianos solteros y mayores de edad",6,0,5,0,10,"NO",0,"NO",0,"NO",0,21]
["MREMH-008-10-38","Concesión de visa de residencia temporal de excepción interés nacional",6,0,5,0,10,"NO",0,"NO",0,"NO",0,21]
["MREMH-008-10-28","Concesión de visa de residencia temporal de Profesional, Técnico, Tecnólogo o Artesano",6,4,5,0,10,"NO",0,"NO",0,"NO",0,25]
["MREMH-008-01-11","Concesión de visa residencia permanente MERCOSUR",6,4,10,0,10,"NO",0,"NO",0,"NO",0,30]
["MREMH-004-02-01","Registro de Firmas para Legalizaciones",6,0,5,0,10,"NO",0,"NO",0,"NO",0,21]
["MREMH-008-30-01","Concesión de visa de visitante temporal turista 90 días",6,0,5,0,10,"NO",0,"NO",0,"NO",0,21]
["MREMH-008-31-14","Recurso Administrativo de Apelación",6,0,10,0,0,"NO",0,"NO",0,"NO",0,16]
["MREMH-008-01-12","Concesión de visa de residencia permanente por matrimonio o unión de hecho con ecuatoriano o extranjero titular de una visa indefinida o permanente",6,0,10,0,10,"NO",0,"NO",0,"NO",0,26]
["MREMH-012-01-01","Emisión de certificación para migrantes ecuatorianos retornados",6,4,5,0,0,"NO",0,"NO",0,"NO",0,15]
["MREMH-008-10-36","Concesión de visa de residencia temporal de amparo todas las categorías",6,0,5,0,10,"NO",0,"NO",0,"NO",0,21]
["MREMH-003-01-01","Atención a Exhortos o Cartas Rogatorias",6,4,20,0,10,"NO",0,"NO",0,"NO",0,40]
["MREMH-020-04-01","Solicitud de inscripción oportuna de nacimiento para ecuatorianos en el exterior",6,4,5,0,10,"NO",0,"NO",0,"NO",0,25]
["MREMH-008-31-01","Determinación de la condición de Refugiado o Apátrida ",10,4,10,0,0,"NO",0,"NO",0,"NO",0,24]
["MREMH-008-10-08","Concesión de visa de residencia temporal de trabajo",10,4,5,0,10,"NO",0,"NO",0,"NO",0,29]
["MREMH-008-01-10","Concesión de visa de residencia permanente por tiempo de permanencia mayor a 21 meses con residencia temporal en el Ecuador.",10,4,10,0,10,"NO",0,"NO",0,"NO",0,34]
["MREMH-018-03-09","Revocatoria de poderes generales y especiales y primera copia en el exterior",10,0,20,0,10,"SI",5,"NO",0,"SI",5,50]
["MREMH-008-01-16","Concesión de visa de residencia permanente para extranjeros hasta segundo grado de consanguinidad o afinidad de un ciudadano ecuatoriano o de un ciudadano extranjero con residencia permanente en el Ecuador",10,0,10,0,10,"NO",0,"NO",0,"NO",0,30]
["MREMH-020-04-04","Razón de no Inscripción en el exterior",10,0,5,0,10,"NO",0,"NO",0,"NO",0,25]
["MREMH-008-24-01","Transferencia de Visa",10,4,5,0,10,"NO",0,"NO",0,"NO",0,29]
["MREMH-008-30-04","Emisión de Visa Diplomática",10,0,5,0,10,"NO",0,"NO",0,"NO",0,25]
["MREMH-001-06-01","Emisión de pasaporte de Emergencia",10,0,5,0,10,"NO",0,"NO",0,"NO",0,25]
["MREMH-018-03-06","Otorgamiento de segunda y siguientes copias certificadas de poderes para ecuatorianos en el exterior ",10,0,20,0,10,"SI",5,"NO",0,"SI",5,50]
["MREMH-012-02-05","Emisión de copias certificadas de aquellos documentos que constan en el archivo del consulado en el exterior",10,0,5,0,10,"NO",0,"NO",0,"NO",0,25]
["MREMH-020-08-01","Renovación de cédula de ciudadanía de ecuatorianos en el exterior",10,4,5,0,10,"NO",0,"NO",0,"NO",0,29]
["MREMH-023-11-05","Gestión de asistencia a ecuatorianos en el exterior deportados o expulsados hacia el Ecuador.",10,0,10,0,10,"NO",0,"NO",0,"NO",0,30]
["MREMH-008-01-13","Concesión de visa de residencia permanente UNASUR",10,4,10,0,10,"NO",0,"NO",0,"NO",0,34]
["MREMH-018-01-03","Otorgamiento de autorización de salida del país y autorización para otorgamiento de pasaporte a menores de 18 años",10,0,5,0,10,"NO",0,"NO",0,"NO",0,25]
["MREMH-008-10-34","Concesión de visa de residencia temporal UNASUR",10,4,5,0,10,"NO",0,"NO",0,"NO",0,29]
["MREMH-018-03-04","Otorgamiento de poder especial para cobro de sueldos, pensiones de jubilación, invalidez, montepío, primera copia y revocatoria",10,0,20,0,10,"NO",0,"NO",0,"NO",0,40]
["MREMH-020-07-01","Certificado Digital de Datos de Identidad",10,4,5,0,10,"NO",0,"NO",0,"NO",0,29]
["MREMH-001-07-01","Gestión de Pasaportes Extraviados o Robados",10,0,5,0,10,"NO",0,"NO",0,"NO",0,25]
["MREMH-008-10-40","Concesión de visa de residencia temporal MERCOSUR",10,4,5,0,10,"NO",0,"NO",0,"NO",0,29]
["MREMH-008-31-05","Renovación del documento de identificación de Refugiado/a (Visa de Personas en Protección Internacional)",10,4,10,0,0,"NO",0,"NO",0,"NO",0,24]
["MREMH-008-31-19","Renovación de Visa Humanitaria (Certificado provisional de solicitante de la condición de Refugiado/a)",10,4,10,0,0,"NO",0,"NO",0,"NO",0,24]
["MREMH-008-25-02","Cancelación de visas por oficio requerida por una persona natural o jurídica auspiciante de la visa",10,4,5,0,10,"NO",0,"NO",0,"NO",0,29]
["MREMH-008-10-37","Concesión de visa de residencia temporal de excepción actividad productiva - comercial",10,0,5,0,10,"NO",0,"NO",0,"NO",0,25]
["MREMH-023-11-01","Gestión de protección a ecuatorianos en el exterior por retorno asistido y en situaciones de vulnerabilidad",10,0,10,0,10,"NO",0,"NO",0,"NO",0,30]
["MREMH-018-01-01","Declaración juramentada para ciudadanos ecuatorianos y extranjeros en el exterior",10,10,20,0,10,"SI",5,"NO",0,"SI",5,60]
["MREMH-018-01-07","Otorgamiento de copias certificadas de testamento abierto, testamento cerrado, declaración juramentada, información sumaria y protocolización de documentos en el exterior",10,0,20,0,10,"NO",0,"NO",0,"NO",0,40]
["MREMH-020-05-02","Copias integras de nacimiento, matrimonio o defunción en el exterior",10,4,5,0,10,"NO",0,"NO",0,"NO",0,29]
["MREMH-024-01-01","Emisión de Carné de Identificación Consular",10,4,5,0,10,"NO",0,"NO",0,"NO",0,29]
["MREMH-020-05-01","Emisión de partidas o certificados de nacimientos, matrimonio o defunción para ecuatorianos en el exterior",10,0,5,0,10,"NO",0,"NO",0,"NO",0,25]
["MREMH-021-03-01","Emisión de registro del servicio de paquetería 4x4 para ecuatorianos en el exterior",10,4,5,0,10,"NO",0,"NO",0,"NO",0,29]
["MREMH-008-10-39","Concesión de visa de residencia temporal de excepción por autoridad de movilidad humana",10,4,5,0,10,"NO",0,"NO",0,"NO",0,29]
["MREMH-008-32-02","Emisión de orden de cedulación de visas de residente por primera vez",10,4,5,0,10,"NO",0,"NO",0,"NO",0,29]
["MREMH-021-04-01","Certificación artículo 56 del código orgánico general de procesos",10,4,5,0,0,"NO",0,"NO",0,"NO",0,19]
["MREMH-018-03-02","Otorgamiento de poder especial y primera copia para ecuatorianos en el exterior",10,4,20,0,10,"SI",5,"NO",0,"SI",5,54]
["MREMH-018-03-01","Otorgamiento de poder general y primera copia para ecuatorianos en el exterior",10,4,20,0,10,"SI",5,"NO",0,"SI",5,54]
["MREMH-001-01-01","Emisión de pasaporte ordinario por primera vez en el exterior",10,4,5,0,10,"NO",0,"NO",0,"NO",0,29]
["MREMH-004-01-01","Emisión de Apostilla y Legalización de documentos",10,10,10,0,10,"SI",5,"SI",10,"SI",5,60]